Workbook

Sheet Inleiding
B2: Wat doet deze rekentool?
B30: Hoe gebruik ik de rekentool?
B60: Colofon
B73: Contactgegevens

Sheet Invoer
C2: Invoer
C3: Invoer voor de berekening van de meerwaarde van uitbestede verwerkingsstappen voor walnoten.
E5: Gewicht (kg) | F5: Afzetpercentage
C6: Verse Walnoten | E6: 1000
C7: Bewerking | D7: Wassen, drogen
C9: Ongekraakte, droge walnoten (kg) | E9: =Achtergrondgegevens!C4*Invoer!E6 -> 575
C10: Hoeveel ongekraakte walnoten kan je maximaal afzetten? (kg) | E10: 1000 | F10: =E10/E9 -> 1.739130435
C12: Bewerking | D12: Wassen, drogen, machinaal kalibreren
C13: Bewerking | D13: Kraken, schalen verwijderen, sorteren
C15: Walnootkernen (kg, als 100% van de noten worden gekraakt) | E15: =Achtergrondgegevens!C5*E9 -> 189.75
C16: Hoeveel walnootkernen kan je maximaal afzetten? (kg) | E16: 1000 | F16: =E16/E15 -> 5.270092227
C18: Bewerking | D18: Persen
C20: Walnootolie (l, als 100% van de noten worden geperst) | E20: =Achtergrondgegevens!C6*E15 -> 104.3625
C21: Hoeveel walnootolie kan je maximaal afzetten? (l) | E21: 1000 | F21: =E21/E20 -> 9.581985867
D23: Totale afzetcapaciteit | F23: =SUM(F10,F16,F21) -> 16.59120853
C25: Verkoopprijzen: Kies een marktsegment voor gebruikelijke prijzen of voer je eigen gegevens in
C26: Marktsegment | D26: Middel | F26: Eigen invoer
C27: Ongekraakte Droge Walnoten (€/kg) | D27: =_xlfn.XLOOKUP(D26,'Opties dropdown'!B2:B5,'Opties dropdown'!C2:C5) -> 5.5
C28: Walnootkernen (€/kg) | D28: =_xlfn.XLOOKUP(D26,'Opties dropdown'!B7:B10,'Opties dropdown'!C7:C10) -> 20
C29: Walnootolie (€/l) | D29: =_xlfn.XLOOKUP(D26,'Opties dropdown'!B12:B15,'Opties dropdown'!C12:C15) -> 60
C32: Verwerkingskosten:
F33: Kosten bij Veld 4
C34: Uitbesteding wassen/drogen (€/kg droge noten) | D34: 1 | F34: 1
C35: Uitbesteding kraken (€/kg) | D35: 2 | F35: 2
C36: Uitbesteding persen (€/kg) | D36: 3.95 | F36: 3.95
C39: Verpakkingskosten: Kies een kwaliteitsniveau voor standaardprijzen of voer je eigen gegevens in
C40: Kwaliteitsniveau | D40: Basis | F40: Eigen invoer
C41: Verpakking ongekraakt (€/kg) | D41: =_xlfn.XLOOKUP(D40,'Opties dropdown'!H2:H4,'Opties dropdown'!I2:I4) -> 0.5
C42: Verpakking kernen (€/kg) | D42: =_xlfn.XLOOKUP(D40,'Opties dropdown'!H6:H8,'Opties dropdown'!I6:I8) -> 0.63
C43: Verpakking olie (€/l) | D43: =_xlfn.XLOOKUP(D40,'Opties dropdown'!H10:H12,'Opties dropdown'!I10:I12) -> 4.9584

Sheet Resultaten
B3: Resultaten: Tabel 1 | O3: Resultaten: Tabel 2
E5: Saldo | F5: Noten in dop | H5: Gekraakt | J5: Olie | O5: Bestaande waardes | P5: (Alle)
F6: % | G6: kg | H6: % | I6: kg | J6: % | K6: l
B7: Opbrengsten 100% droge noten in dop | E7: =Berekeningen!BE7 -> 2300 | F7: 1 | G7: =F7*Invoer!E9 -> 575 | H7: 0 | I7: =H7*Invoer!E15 -> 0 | J7: 0 | K7: =J7*Invoer!E20 -> 0 | O7: Meerwaarde bij verwerking | P7: % Walnoten verkocht als kern
B8: Maximale opbrengst (theoretisch) | E8: =MAX(Berekeningen!BE7:BE72) -> 3269.76648 | F8: =_xlfn.XLOOKUP(E8,Berekeningen!BE7:BE72,Berekeningen!BD7:BD72) -> 0 | G8: =F8*Invoer!E9 -> 0 | H8: =_xlfn.XLOOKUP(E8,Berekeningen!BE7:BE72,Berekeningen!BB7:BB72) -> 0 | I8: =H8*Invoer!E15 -> 0 | J8: =_xlfn.XLOOKUP(E8,Berekeningen!BE7:BE72,Berekeningen!BC7:BC72) -> 1 | K8: =J8*Invoer!E20 -> 104.3625 | O8: % Walnoten verkocht als olie | P8: 0 | Q8: 0.1 | R8: 0.2 | S8: 0.3 | T8: 0.4 | U8: 0.5 | V8: 0.6 | W8: 0.7 | X8: 0.8 | Y8: 0.9 | Z8: 1
B9: Maximale opbrengst (o.b.v. afzetverwachting) | E9: =_xlfn.MAXIFS(Berekeningen!BE7:BE72,Berekeningen!BD7:BD72,"<="&Invoer!F10+0.05,Berekeningen!BB7:BB72,"<="&Invoer!F16+0.05,Berekeningen!BC7:BC72,"<="&Invoer!F21+0.05) -> 3269.76648 | F9: =_xlfn.XLOOKUP(E9,Berekeningen!BE7:BE72,Berekeningen!BD7:BD72) -> 0 | G9: =F9*Invoer!E9 -> 0 | H9: =_xlfn.XLOOKUP(E9,Berekeningen!BE7:BE72,Berekeningen!BB7:BB72) -> 0 | I9: =H9*Invoer!E15 -> 0 | J9: =_xlfn.XLOOKUP(E9,Berekeningen!BE7:BE72,Berekeningen!BC7:BC72) -> 1 | K9: =J9*Invoer!E20 -> 104.3625 | O9: 0 | P9: 0 | Q9: -34.95425 | R9: -69.9085 | S9: -104.86275 | T9: -139.817 | U9: -174.77125 | V9: -209.7255 | W9: -244.67975 | X9: -279.634 | Y9: -314.58825 | Z9: -349.5425
O10: 0.1 | P10: 96.976648 | Q10: 62.022398 | R10: 27.068148 | S10: -7.886102 | T10: -42.840352 | U10: -77.794602 | V10: -112.748852 | W10: -147.703102 | X10: -182.657352 | Y10: -217.611602
O11: 0.2 | P11: 193.953296 | Q11: 158.999046 | R11: 124.044796 | S11: 89.090546 | T11: 54.136296 | U11: 19.182046 | V11: -15.772204 | W11: -50.726454 | X11: -85.680704
O12: 0.3 | P12: 290.929944 | Q12: 255.975694 | R12: 221.021444 | S12: 186.067194 | T12: 151.112944 | U12: 116.158694 | V12: 81.204444 | W12: 46.250194
O13: 0.4 | P13: 387.906592 | Q13: 352.952342 | R13: 317.998092 | S13: 283.043842 | T13: 248.089592 | U13: 213.135342 | V13: 178.181092
O14: 0.5 | P14: 484.88324 | Q14: 449.92899 | R14: 414.97474 | S14: 380.02049 | T14: 345.06624 | U14: 310.11199
O15: 0.6 | P15: 581.859888 | Q15: 546.905638 | R15: 511.951388 | S15: 476.997138 | T15: 442.042888
O16: 0.7 | P16: 678.836536 | Q16: 643.882286 | R16: 608.928036 | S16: 573.973786
O17: 0.8 | P17: 775.813184 | Q17: 740.858934 | R17: 705.904684
O18: 0.9 | P18: 872.789832 | Q18: 837.835582
O19: 1 | P19: 969.76648

Sheet Berekeningen (hidden)
B2: Berekeningen
B4: Gewicht (kg) (ongekraakte) Droge walnoten, totaal toegerekend per staffel | I4: Resterend gewicht product (kg/l) na (tussen-)bewerking, per staffel | Q4: Inkomsten (Resterend gewicht product na bewerking (kg/l) * verkoopprijs (€)), per staffel | X4: Berwerkings- en verpakkingkosten product, per staffel | AO4: Inkomsten (zonder bewerking) - Oud (O) | AQ4: Saldo Verandering O ( O inkomsten) - N (N inkomsten - N kosten) | AW4: Staffels met Saldo Verandering | BB4: Staffels met Saldo
B5: Kernen | D5: Olie | F5: Droge Walnoot | I5: Kernen | K5: Olie | N5: Droge Walnoot | Q5: Kernen | S5: Olie | U5: Droge Walnoot | X5: Kernen | AC5: Olie | AI5: Droge Walnoot | AM5: Totaal | AO5: Droge Walnoot | AQ5: Nieuw (N) | AT5: Oud (O) | AU5: O-N
B6: Staffel | C6: Gewicht (kg) | D6: Staffel | E6: Gewicht (kg) | F6: Staffel | G6: Gewicht (kg) | I6: Staffel | J6: Gewicht (kg) | K6: Staffel | L6: * Gewicht (kg) tussenbewerking tot kernen | M6: Gewicht (l) | N6: Staffel | O6: Gewicht (kg) | Q6: Staffel | R6: Inkomsten | S6: Staffel | T6: Inkomsten | U6: Staffel | V6: Inkomsten | X6: Staffel | Y6: * Verwerking tot droge noten | Z6: Verwerking | AA6: Verpakking | AB6: Kosten subtotaal | AC6: Staffel | AD6: * Verwerking tot kernen | AE6: ** Verwerking tot kernen | AF6: Verwerking tot olie | AG6: Verpakking | AH6: Kosten subtotaal | AI6: Staffel | AJ6: Verwerking | AK6: Verpakking | AL6: Kosten subtotaal | AM6: Totaal | AO6: Verkoopprijs * gewicht | AQ6: Totale inkomsten | AR6: * Totale kosten Verwerking en Verpakking | AS6: Saldo | AU6: Saldo verandering | AW6: Kernen | AX6: Olie | AY6: Droge Walnoot | AZ6: Saldo verandering | BB6: Kernen | BC6: Olie | BD6: Droge Walnoot | BE6: Saldo
B7: 0 | C7: =B7*Invoer!$E$9 -> 0 | D7: 0 | E7: =D7*Invoer!$E$9 -> 0 | F7: =100%-D7-B7 -> 1 | G7: =F7*Invoer!$E$9 -> 575 | I7: 0 | J7: =I7*Invoer!$E$15 -> 0 | K7: 0 | L7: =K7*Invoer!$E$15 -> 0 | M7: =K7*Invoer!$E$20 -> 0 | N7: =100%-K7-I7 -> 1 | O7: =N7*Invoer!$E$9 -> 575 | Q7: 0 | R7: =IF(Invoer!$F$28,J7*Invoer!$F$28,J7*Invoer!$D$28) -> 0 | S7: 0 | T7: =IF(Invoer!$F$29,M7*Invoer!$F$29,M7*Invoer!$D$29) -> 0 | U7: =100%-S7-Q7 -> 1 | V7: =IF(Invoer!$F$27,O7*Invoer!$F$27,O7*Invoer!$D$27) -> 3162.5 | X7: 0 | Y7: =Invoer!$D$34*Berekeningen!C7 -> 0 | Z7: =Berekeningen!C7*Invoer!$D$35 -> 0 | AA7: =IF(Invoer!$F$42,J7*Invoer!$F$42,J7*Invoer!$D$42) -> 0 | AB7: =Y7+Z7+AA7 -> 0 | AC7: 0 | AD7: =Invoer!$D$34*E7 -> 0 | AE7: =E7*Invoer!$D$35 -> 0 | AF7: =L7*Invoer!$D$36 -> 0 | AG7: =IF(Invoer!$F$43,Invoer!$F$43*M7,Invoer!$D$43*M7) -> 0 | AH7: =AD7+AE7+AF7+AG7 -> 0 | AI7: =100%-AC7-X7 -> 1 | AJ7: =Invoer!$D$34*Berekeningen!G7 -> 575 | AK7: =IF(Invoer!$F$41,Invoer!$F$41*G7,Invoer!$D$41*G7) -> 287.5 | AL7: =AJ7+AK7 -> 862.5 | AM7: =AB7+AH7+AL7 -> 862.5 | AO7: =$V$7 -> 3162.5 | AQ7: =R7+T7+V7 -> 3162.5 | AR7: =AM7 -> 862.5 | AS7: =AQ7-AR7 -> 2300 | AT7: =AO7-$AM$7 -> 2300 | AU7: =AS7-AT7 -> 0 | AW7: 0 | AX7: 0 | AY7: =100%-AX7-AW7 -> 1 | AZ7: =AU7 -> 0 | BB7: 0 | BC7: 0 | BD7: =100%-BC7-BB7 -> 1 | BE7: =AS7 -> 2300
B8: 0.1 | C8: =B8*Invoer!$E$9 -> 57.5 | D8: 0 | E8: =D8*Invoer!$E$9 -> 0 | F8: =100%-D8-B8 -> 0.9 | G8: =F8*Invoer!$E$9 -> 517.5 | I8: 0.1 | J8: =I8*Invoer!$E$15 -> 18.975 | K8: 0 | L8: =K8*Invoer!$E$15 -> 0 | M8: =K8*Invoer!$E$20 -> 0 | N8: 0.9 | O8: =N8*Invoer!$E$9 -> 517.5 | Q8: 0.1 | R8: =IF(Invoer!$F$28,J8*Invoer!$F$28,J8*Invoer!$D$28) -> 379.5 | S8: 0 | T8: =IF(Invoer!$F$29,M8*Invoer!$F$29,M8*Invoer!$D$29) -> 0 | U8: 0.9 | V8: =IF(Invoer!$F$27,O8*Invoer!$F$27,O8*Invoer!$D$27) -> 2846.25 | X8: 0.1 | Y8: =Invoer!$D$34*Berekeningen!C8 -> 57.5 | Z8: =Berekeningen!C8*Invoer!$D$35 -> 115 | AA8: =IF(Invoer!$F$42,J8*Invoer!$F$42,J8*Invoer!$D$42) -> 11.95425 | AB8: =Y8+Z8+AA8 -> 184.45425 | AC8: 0 | AD8: =Invoer!$D$34*E8 -> 0 | AE8: =E8*Invoer!$D$35 -> 0 | AF8: =L8*Invoer!$D$36 -> 0 | AG8: =IF(Invoer!$F$43,Invoer!$F$43*M8,Invoer!$D$43*M8) -> 0 | AH8: =AD8+AE8+AF8+AG8 -> 0 | AI8: 0.9 | AJ8: =Invoer!$D$34*Berekeningen!G8 -> 517.5 | AK8: =IF(Invoer!$F$41,Invoer!$F$41*G8,Invoer!$D$41*G8) -> 258.75 | AL8: =AJ8+AK8 -> 776.25 | AM8: 960.70425 | AO8: =$V$7 -> 3162.5 | AQ8: 3225.75 | AR8: =AM8 -> 960.70425 | AS8: =AQ8-AR8 -> 2265.04575 | AT8: =AO8-$AM$7 -> 2300 | AU8: =AS8-AT8 -> -34.95425 | AW8: 0.1 | AX8: 0 | AY8: 0.9 | AZ8: =AU8 -> -34.95425 | BB8: 0.1 | BC8: 0 | BD8: 0.9 | BE8: =AS8 -> 2265.04575
B9: 0.2 | C9: =B9*Invoer!$E$9 -> 115 | D9: 0 | E9: =D9*Invoer!$E$9 -> 0 | F9: 0.8 | G9: =F9*Invoer!$E$9 -> 460 | I9: 0.2 | J9: =I9*Invoer!$E$15 -> 37.95 | K9: 0 | L9: =K9*Invoer!$E$15 -> 0 | M9: =K9*Invoer!$E$20 -> 0 | N9: 0.8 | O9: =N9*Invoer!$E$9 -> 460 | Q9: 0.2 | R9: =IF(Invoer!$F$28,J9*Invoer!$F$28,J9*Invoer!$D$28) -> 759 | S9: 0 | T9: =IF(Invoer!$F$29,M9*Invoer!$F$29,M9*Invoer!$D$29) -> 0 | U9: 0.8 | V9: =IF(Invoer!$F$27,O9*Invoer!$F$27,O9*Invoer!$D$27) -> 2530 | X9: 0.2 | Y9: =Invoer!$D$34*Berekeningen!C9 -> 115 | Z9: =Berekeningen!C9*Invoer!$D$35 -> 230 | AA9: =IF(Invoer!$F$42,J9*Invoer!$F$42,J9*Invoer!$D$42) -> 23.9085 | AB9: 368.9085 | AC9: 0 | AD9: =Invoer!$D$34*E9 -> 0 | AE9: =E9*Invoer!$D$35 -> 0 | AF9: =L9*Invoer!$D$36 -> 0 | AG9: =IF(Invoer!$F$43,Invoer!$F$43*M9,Invoer!$D$43*M9) -> 0 | AH9: 0 | AI9: 0.8 | AJ9: =Invoer!$D$34*Berekeningen!G9 -> 460 | AK9: =IF(Invoer!$F$41,Invoer!$F$41*G9,Invoer!$D$41*G9) -> 230 | AL9: 690 | AM9: 1058.9085 | AO9: 3162.5 | AQ9: 3289 | AR9: 1058.9085 | AS9: =AQ9-AR9 -> 2230.0915 | AT9: 2300 | AU9: -69.9085 | AW9: 0.2 | AX9: 0 | AY9: 0.8 | AZ9: -69.9085 | BB9: 0.2 | BC9: 0 | BD9: 0.8 | BE9: 2230.0915
B10: 0.3 | C10: =B10*Invoer!$E$9 -> 172.5 | D10: 0 | E10: =D10*Invoer!$E$9 -> 0 | F10: 0.7 | G10: =F10*Invoer!$E$9 -> 402.5 | I10: 0.3 | J10: =I10*Invoer!$E$15 -> 56.925 | K10: 0 | L10: =K10*Invoer!$E$15 -> 0 | M10: =K10*Invoer!$E$20 -> 0 | N10: 0.7 | O10: =N10*Invoer!$E$9 -> 402.5 | Q10: 0.3 | R10: =IF(Invoer!$F$28,J10*Invoer!$F$28,J10*Invoer!$D$28) -> 1138.5 | S10: 0 | T10: =IF(Invoer!$F$29,M10*Invoer!$F$29,M10*Invoer!$D$29) -> 0 | U10: 0.7 | V10: =IF(Invoer!$F$27,O10*Invoer!$F$27,O10*Invoer!$D$27) -> 2213.75 | X10: 0.3 | Y10: =Invoer!$D$34*Berekeningen!C10 -> 172.5 | Z10: =Berekeningen!C10*Invoer!$D$35 -> 345 | AA10: =IF(Invoer!$F$42,J10*Invoer!$F$42,J10*Invoer!$D$42) -> 35.86275 | AB10: 553.36275 | AC10: 0 | AD10: =Invoer!$D$34*E10 -> 0 | AE10: =E10*Invoer!$D$35 -> 0 | AF10: =L10*Invoer!$D$36 -> 0 | AG10: =IF(Invoer!$F$43,Invoer!$F$43*M10,Invoer!$D$43*M10) -> 0 | AH10: 0 | AI10: 0.7 | AJ10: =Invoer!$D$34*Berekeningen!G10 -> 402.5 | AK10: =IF(Invoer!$F$41,Invoer!$F$41*G10,Invoer!$D$41*G10) -> 201.25 | AL10: 603.75 | AM10: 1157.11275 | AO10: 3162.5 | AQ10: 3352.25 | AR10: 1157.11275 | AS10: =AQ10-AR10 -> 2195.13725 | AT10: 2300 | AU10: -104.86275 | AW10: 0.3 | AX10: 0 | AY10: 0.7 | AZ10: -104.86275 | BB10: 0.3 | BC10: 0 | BD10: 0.7 | BE10: 2195.13725
B11: 0.4 | C11: =B11*Invoer!$E$9 -> 230 | D11: 0 | E11: =D11*Invoer!$E$9 -> 0 | F11: 0.6 | G11: =F11*Invoer!$E$9 -> 345 | I11: 0.4 | J11: =I11*Invoer!$E$15 -> 75.9 | K11: 0 | L11: =K11*Invoer!$E$15 -> 0 | M11: =K11*Invoer!$E$20 -> 0 | N11: 0.6 | O11: =N11*Invoer!$E$9 -> 345 | Q11: 0.4 | R11: =IF(Invoer!$F$28,J11*Invoer!$F$28,J11*Invoer!$D$28) -> 1518 | S11: 0 | T11: =IF(Invoer!$F$29,M11*Invoer!$F$29,M11*Invoer!$D$29) -> 0 | U11: 0.6 | V11: =IF(Invoer!$F$27,O11*Invoer!$F$27,O11*Invoer!$D$27) -> 1897.5 | X11: 0.4 | Y11: =Invoer!$D$34*Berekeningen!C11 -> 230 | Z11: =Berekeningen!C11*Invoer!$D$35 -> 460 | AA11: =IF(Invoer!$F$42,J11*Invoer!$F$42,J11*Invoer!$D$42) -> 47.817 | AB11: 737.817 | AC11: 0 | AD11: =Invoer!$D$34*E11 -> 0 | AE11: =E11*Invoer!$D$35 -> 0 | AF11: =L11*Invoer!$D$36 -> 0 | AG11: =IF(Invoer!$F$43,Invoer!$F$43*M11,Invoer!$D$43*M11) -> 0 | AH11: 0 | AI11: 0.6 | AJ11: =Invoer!$D$34*Berekeningen!G11 -> 345 | AK11: =IF(Invoer!$F$41,Invoer!$F$41*G11,Invoer!$D$41*G11) -> 172.5 | AL11: 517.5 | AM11: 1255.317 | AO11: 3162.5 | AQ11: 3415.5 | AR11: 1255.317 | AS11: 2160.183 | AT11: 2300 | AU11: -139.817 | AW11: 0.4 | AX11: 0 | AY11: 0.6 | AZ11: -139.817 | BB11: 0.4 | BC11: 0 | BD11: 0.6 | BE11: 2160.183
B12: 0.5 | C12: =B12*Invoer!$E$9 -> 287.5 | D12: 0 | E12: =D12*Invoer!$E$9 -> 0 | F12: 0.5 | G12: =F12*Invoer!$E$9 -> 287.5 | I12: 0.5 | J12: =I12*Invoer!$E$15 -> 94.875 | K12: 0 | L12: =K12*Invoer!$E$15 -> 0 | M12: =K12*Invoer!$E$20 -> 0 | N12: 0.5 | O12: =N12*Invoer!$E$9 -> 287.5 | Q12: 0.5 | R12: =IF(Invoer!$F$28,J12*Invoer!$F$28,J12*Invoer!$D$28) -> 1897.5 | S12: 0 | T12: =IF(Invoer!$F$29,M12*Invoer!$F$29,M12*Invoer!$D$29) -> 0 | U12: 0.5 | V12: =IF(Invoer!$F$27,O12*Invoer!$F$27,O12*Invoer!$D$27) -> 1581.25 | X12: 0.5 | Y12: =Invoer!$D$34*Berekeningen!C12 -> 287.5 | Z12: =Berekeningen!C12*Invoer!$D$35 -> 575 | AA12: =IF(Invoer!$F$42,J12*Invoer!$F$42,J12*Invoer!$D$42) -> 59.77125 | AB12: 922.27125 | AC12: 0 | AD12: =Invoer!$D$34*E12 -> 0 | AE12: =E12*Invoer!$D$35 -> 0 | AF12: =L12*Invoer!$D$36 -> 0 | AG12: =IF(Invoer!$F$43,Invoer!$F$43*M12,Invoer!$D$43*M12) -> 0 | AH12: 0 | AI12: 0.5 | AJ12: =Invoer!$D$34*Berekeningen!G12 -> 287.5 | AK12: =IF(Invoer!$F$41,Invoer!$F$41*G12,Invoer!$D$41*G12) -> 143.75 | AL12: 431.25 | AM12: 1353.52125 | AO12: 3162.5 | AQ12: 3478.75 | AR12: 1353.52125 | AS12: 2125.22875 | AT12: 2300 | AU12: -174.77125 | AW12: 0.5 | AX12: 0 | AY12: 0.5 | AZ12: -174.77125 | BB12: 0.5 | BC12: 0 | BD12: 0.5 | BE12: 2125.22875
B13: 0.6 | C13: =B13*Invoer!$E$9 -> 345 | D13: 0 | E13: =D13*Invoer!$E$9 -> 0 | F13: 0.4 | G13: =F13*Invoer!$E$9 -> 230 | I13: 0.6 | J13: =I13*Invoer!$E$15 -> 113.85 | K13: 0 | L13: =K13*Invoer!$E$15 -> 0 | M13: =K13*Invoer!$E$20 -> 0 | N13: 0.4 | O13: =N13*Invoer!$E$9 -> 230 | Q13: 0.6 | R13: =IF(Invoer!$F$28,J13*Invoer!$F$28,J13*Invoer!$D$28) -> 2277 | S13: 0 | T13: =IF(Invoer!$F$29,M13*Invoer!$F$29,M13*Invoer!$D$29) -> 0 | U13: 0.4 | V13: =IF(Invoer!$F$27,O13*Invoer!$F$27,O13*Invoer!$D$27) -> 1265 | X13: 0.6 | Y13: =Invoer!$D$34*Berekeningen!C13 -> 345 | Z13: =Berekeningen!C13*Invoer!$D$35 -> 690 | AA13: =IF(Invoer!$F$42,J13*Invoer!$F$42,J13*Invoer!$D$42) -> 71.7255 | AB13: 1106.7255 | AC13: 0 | AD13: =Invoer!$D$34*E13 -> 0 | AE13: =E13*Invoer!$D$35 -> 0 | AF13: =L13*Invoer!$D$36 -> 0 | AG13: =IF(Invoer!$F$43,Invoer!$F$43*M13,Invoer!$D$43*M13) -> 0 | AH13: 0 | AI13: 0.4 | AJ13: =Invoer!$D$34*Berekeningen!G13 -> 230 | AK13: =IF(Invoer!$F$41,Invoer!$F$41*G13,Invoer!$D$41*G13) -> 115 | AL13: 345 | AM13: 1451.7255 | AO13: 3162.5 | AQ13: 3542 | AR13: 1451.7255 | AS13: 2090.2745 | AT13: 2300 | AU13: -209.7255 | AW13: 0.6 | AX13: 0 | AY13: 0.4 | AZ13: -209.7255 | BB13: 0.6 | BC13: 0 | BD13: 0.4 | BE13: 2090.2745
B14: 0.7 | C14: =B14*Invoer!$E$9 -> 402.5 | D14: 0 | E14: =D14*Invoer!$E$9 -> 0 | F14: 0.3 | G14: =F14*Invoer!$E$9 -> 172.5 | I14: 0.7 | J14: =I14*Invoer!$E$15 -> 132.825 | K14: 0 | L14: =K14*Invoer!$E$15 -> 0 | M14: =K14*Invoer!$E$20 -> 0 | N14: 0.3 | O14: =N14*Invoer!$E$9 -> 172.5 | Q14: 0.7 | R14: =IF(Invoer!$F$28,J14*Invoer!$F$28,J14*Invoer!$D$28) -> 2656.5 | S14: 0 | T14: =IF(Invoer!$F$29,M14*Invoer!$F$29,M14*Invoer!$D$29) -> 0 | U14: 0.3 | V14: =IF(Invoer!$F$27,O14*Invoer!$F$27,O14*Invoer!$D$27) -> 948.75 | X14: 0.7 | Y14: =Invoer!$D$34*Berekeningen!C14 -> 402.5 | Z14: =Berekeningen!C14*Invoer!$D$35 -> 805 | AA14: =IF(Invoer!$F$42,J14*Invoer!$F$42,J14*Invoer!$D$42) -> 83.67975 | AB14: 1291.17975 | AC14: 0 | AD14: =Invoer!$D$34*E14 -> 0 | AE14: =E14*Invoer!$D$35 -> 0 | AF14: =L14*Invoer!$D$36 -> 0 | AG14: =IF(Invoer!$F$43,Invoer!$F$43*M14,Invoer!$D$43*M14) -> 0 | AH14: 0 | AI14: 0.3 | AJ14: =Invoer!$D$34*Berekeningen!G14 -> 172.5 | AK14: =IF(Invoer!$F$41,Invoer!$F$41*G14,Invoer!$D$41*G14) -> 86.25 | AL14: 258.75 | AM14: 1549.92975 | AO14: 3162.5 | AQ14: 3605.25 | AR14: 1549.92975 | AS14: 2055.32025 | AT14: 2300 | AU14: -244.67975 | AW14: 0.7 | AX14: 0 | AY14: 0.3 | AZ14: -244.67975 | BB14: 0.7 | BC14: 0 | BD14: 0.3 | BE14: 2055.32025
B15: 0.8 | C15: =B15*Invoer!$E$9 -> 460 | D15: 0 | E15: =D15*Invoer!$E$9 -> 0 | F15: 0.2 | G15: =F15*Invoer!$E$9 -> 115 | I15: 0.8 | J15: =I15*Invoer!$E$15 -> 151.8 | K15: 0 | L15: =K15*Invoer!$E$15 -> 0 | M15: =K15*Invoer!$E$20 -> 0 | N15: 0.2 | O15: =N15*Invoer!$E$9 -> 115 | Q15: 0.8 | R15: =IF(Invoer!$F$28,J15*Invoer!$F$28,J15*Invoer!$D$28) -> 3036 | S15: 0 | T15: =IF(Invoer!$F$29,M15*Invoer!$F$29,M15*Invoer!$D$29) -> 0 | U15: 0.2 | V15: =IF(Invoer!$F$27,O15*Invoer!$F$27,O15*Invoer!$D$27) -> 632.5 | X15: 0.8 | Y15: =Invoer!$D$34*Berekeningen!C15 -> 460 | Z15: =Berekeningen!C15*Invoer!$D$35 -> 920 | AA15: =IF(Invoer!$F$42,J15*Invoer!$F$42,J15*Invoer!$D$42) -> 95.634 | AB15: 1475.634 | AC15: 0 | AD15: =Invoer!$D$34*E15 -> 0 | AE15: =E15*Invoer!$D$35 -> 0 | AF15: =L15*Invoer!$D$36 -> 0 | AG15: =IF(Invoer!$F$43,Invoer!$F$43*M15,Invoer!$D$43*M15) -> 0 | AH15: 0 | AI15: 0.2 | AJ15: =Invoer!$D$34*Berekeningen!G15 -> 115 | AK15: =IF(Invoer!$F$41,Invoer!$F$41*G15,Invoer!$D$41*G15) -> 57.5 | AL15: 172.5 | AM15: 1648.134 | AO15: 3162.5 | AQ15: 3668.5 | AR15: 1648.134 | AS15: =AQ15-AR15 -> 2020.366 | AT15: 2300 | AU15: -279.634 | AW15: 0.8 | AX15: 0 | AY15: 0.2 | AZ15: -279.634 | BB15: 0.8 | BC15: 0 | BD15: 0.2 | BE15: 2020.366
B16: 0.9 | C16: =B16*Invoer!$E$9 -> 517.5 | D16: 0 | E16: =D16*Invoer!$E$9 -> 0 | F16: 0.1 | G16: =F16*Invoer!$E$9 -> 57.5 | I16: 0.9 | J16: =I16*Invoer!$E$15 -> 170.775 | K16: 0 | L16: =K16*Invoer!$E$15 -> 0 | M16: =K16*Invoer!$E$20 -> 0 | N16: 0.1 | O16: =N16*Invoer!$E$9 -> 57.5 | Q16: 0.9 | R16: =IF(Invoer!$F$28,J16*Invoer!$F$28,J16*Invoer!$D$28) -> 3415.5 | S16: 0 | T16: =IF(Invoer!$F$29,M16*Invoer!$F$29,M16*Invoer!$D$29) -> 0 | U16: 0.1 | V16: =IF(Invoer!$F$27,O16*Invoer!$F$27,O16*Invoer!$D$27) -> 316.25 | X16: 0.9 | Y16: =Invoer!$D$34*Berekeningen!C16 -> 517.5 | Z16: =Berekeningen!C16*Invoer!$D$35 -> 1035 | AA16: =IF(Invoer!$F$42,J16*Invoer!$F$42,J16*Invoer!$D$42) -> 107.58825 | AB16: 1660.08825 | AC16: 0 | AD16: =Invoer!$D$34*E16 -> 0 | AE16: =E16*Invoer!$D$35 -> 0 | AF16: =L16*Invoer!$D$36 -> 0 | AG16: =IF(Invoer!$F$43,Invoer!$F$43*M16,Invoer!$D$43*M16) -> 0 | AH16: 0 | AI16: 0.1 | AJ16: =Invoer!$D$34*Berekeningen!G16 -> 57.5 | AK16: =IF(Invoer!$F$41,Invoer!$F$41*G16,Invoer!$D$41*G16) -> 28.75 | AL16: 86.25 | AM16: 1746.33825 | AO16: 3162.5 | AQ16: 3731.75 | AR16: 1746.33825 | AS16: 1985.41175 | AT16: 2300 | AU16: -314.58825 | AW16: 0.9 | AX16: 0 | AY16: 0.1 | AZ16: -314.58825 | BB16: 0.9 | BC16: 0 | BD16: 0.1 | BE16: 1985.41175
B17: 1 | C17: =B17*Invoer!$E$9 -> 575 | D17: 0 | E17: =D17*Invoer!$E$9 -> 0 | F17: 0 | G17: =F17*Invoer!$E$9 -> 0 | I17: 1 | J17: =I17*Invoer!$E$15 -> 189.75 | K17: 0 | L17: =K17*Invoer!$E$15 -> 0 | M17: =K17*Invoer!$E$20 -> 0 | N17: 0 | O17: =N17*Invoer!$E$9 -> 0 | Q17: 1 | R17: =IF(Invoer!$F$28,J17*Invoer!$F$28,J17*Invoer!$D$28) -> 3795 | S17: 0 | T17: =IF(Invoer!$F$29,M17*Invoer!$F$29,M17*Invoer!$D$29) -> 0 | U17: 0 | V17: =IF(Invoer!$F$27,O17*Invoer!$F$27,O17*Invoer!$D$27) -> 0 | X17: 1 | Y17: =Invoer!$D$34*Berekeningen!C17 -> 575 | Z17: =Berekeningen!C17*Invoer!$D$35 -> 1150 | AA17: =IF(Invoer!$F$42,J17*Invoer!$F$42,J17*Invoer!$D$42) -> 119.5425 | AB17: 1844.5425 | AC17: 0 | AD17: =Invoer!$D$34*E17 -> 0 | AE17: =E17*Invoer!$D$35 -> 0 | AF17: =L17*Invoer!$D$36 -> 0 | AG17: =IF(Invoer!$F$43,Invoer!$F$43*M17,Invoer!$D$43*M17) -> 0 | AH17: 0 | AI17: 0 | AJ17: =Invoer!$D$34*Berekeningen!G17 -> 0 | AK17: =IF(Invoer!$F$41,Invoer!$F$41*G17,Invoer!$D$41*G17) -> 0 | AL17: 0 | AM17: 1844.5425 | AO17: 3162.5 | AQ17: 3795 | AR17: 1844.5425 | AS17: 1950.4575 | AT17: 2300 | AU17: -349.5425 | AW17: 1 | AX17: 0 | AY17: 0 | AZ17: -349.5425 | BB17: 1 | BC17: 0 | BD17: 0 | BE17: 1950.4575
B18: 0 | C18: =B18*Invoer!$E$9 -> 0 | D18: 0.1 | E18: =D18*Invoer!$E$9 -> 57.5 | F18: 0.9 | G18: =F18*Invoer!$E$9 -> 517.5 | I18: 0 | J18: =I18*Invoer!$E$15 -> 0 | K18: 0.1 | L18: =K18*Invoer!$E$15 -> 18.975 | M18: =K18*Invoer!$E$20 -> 10.43625 | N18: 0.9 | O18: =N18*Invoer!$E$9 -> 517.5 | Q18: 0 | R18: =IF(Invoer!$F$28,J18*Invoer!$F$28,J18*Invoer!$D$28) -> 0 | S18: 0.1 | T18: =IF(Invoer!$F$29,M18*Invoer!$F$29,M18*Invoer!$D$29) -> 626.175 | U18: 0.9 | V18: =IF(Invoer!$F$27,O18*Invoer!$F$27,O18*Invoer!$D$27) -> 2846.25 | X18: 0 | Y18: =Invoer!$D$34*Berekeningen!C18 -> 0 | Z18: =Berekeningen!C18*Invoer!$D$35 -> 0 | AA18: =IF(Invoer!$F$42,J18*Invoer!$F$42,J18*Invoer!$D$42) -> 0 | AB18: 0 | AC18: 0.1 | AD18: =Invoer!$D$34*E18 -> 57.5 | AE18: =E18*Invoer!$D$35 -> 115 | AF18: =L18*Invoer!$D$36 -> 74.95125 | AG18: =IF(Invoer!$F$43,Invoer!$F$43*M18,Invoer!$D$43*M18) -> 51.747102 | AH18: 299.198352 | AI18: 0.9 | AJ18: =Invoer!$D$34*Berekeningen!G18 -> 517.5 | AK18: =IF(Invoer!$F$41,Invoer!$F$41*G18,Invoer!$D$41*G18) -> 258.75 | AL18: 776.25 | AM18: 1075.448352 | AO18: 3162.5 | AQ18: 3472.425 | AR18: 1075.448352 | AS18: 2396.976648 | AT18: 2300 | AU18: 96.976648 | AW18: 0 | AX18: 0.1 | AY18: 0.9 | AZ18: 96.976648 | BB18: 0 | BC18: 0.1 | BD18: 0.9 | BE18: 2396.976648
B19: 0.1 | C19: =B19*Invoer!$E$9 -> 57.5 | D19: 0.1 | E19: =D19*Invoer!$E$9 -> 57.5 | F19: 0.8 | G19: =F19*Invoer!$E$9 -> 460 | I19: 0.1 | J19: =I19*Invoer!$E$15 -> 18.975 | K19: 0.1 | L19: =K19*Invoer!$E$15 -> 18.975 | M19: =K19*Invoer!$E$20 -> 10.43625 | N19: 0.8 | O19: =N19*Invoer!$E$9 -> 460 | Q19: 0.1 | R19: =IF(Invoer!$F$28,J19*Invoer!$F$28,J19*Invoer!$D$28) -> 379.5 | S19: 0.1 | T19: =IF(Invoer!$F$29,M19*Invoer!$F$29,M19*Invoer!$D$29) -> 626.175 | U19: 0.8 | V19: =IF(Invoer!$F$27,O19*Invoer!$F$27,O19*Invoer!$D$27) -> 2530 | X19: 0.1 | Y19: =Invoer!$D$34*Berekeningen!C19 -> 57.5 | Z19: =Berekeningen!C19*Invoer!$D$35 -> 115 | AA19: =IF(Invoer!$F$42,J19*Invoer!$F$42,J19*Invoer!$D$42) -> 11.95425 | AB19: 184.45425 | AC19: 0.1 | AD19: =Invoer!$D$34*E19 -> 57.5 | AE19: =E19*Invoer!$D$35 -> 115 | AF19: =L19*Invoer!$D$36 -> 74.95125 | AG19: =IF(Invoer!$F$43,Invoer!$F$43*M19,Invoer!$D$43*M19) -> 51.747102 | AH19: 299.198352 | AI19: 0.8 | AJ19: =Invoer!$D$34*Berekeningen!G19 -> 460 | AK19: =IF(Invoer!$F$41,Invoer!$F$41*G19,Invoer!$D$41*G19) -> 230 | AL19: 690 | AM19: 1173.652602 | AO19: 3162.5 | AQ19: 3535.675 | AR19: 1173.652602 | AS19: 2362.022398 | AT19: 2300 | AU19: 62.022398 | AW19: 0.1 | AX19: 0.1 | AY19: 0.8 | AZ19: 62.022398 | BB19: 0.1 | BC19: 0.1 | BD19: 0.8 | BE19: 2362.022398
B20: 0.2 | C20: =B20*Invoer!$E$9 -> 115 | D20: 0.1 | E20: =D20*Invoer!$E$9 -> 57.5 | F20: 0.7 | G20: =F20*Invoer!$E$9 -> 402.5 | I20: 0.2 | J20: =I20*Invoer!$E$15 -> 37.95 | K20: 0.1 | L20: =K20*Invoer!$E$15 -> 18.975 | M20: =K20*Invoer!$E$20 -> 10.43625 | N20: 0.7 | O20: =N20*Invoer!$E$9 -> 402.5 | Q20: 0.2 | R20: =IF(Invoer!$F$28,J20*Invoer!$F$28,J20*Invoer!$D$28) -> 759 | S20: 0.1 | T20: =IF(Invoer!$F$29,M20*Invoer!$F$29,M20*Invoer!$D$29) -> 626.175 | U20: 0.7 | V20: =IF(Invoer!$F$27,O20*Invoer!$F$27,O20*Invoer!$D$27) -> 2213.75 | X20: 0.2 | Y20: =Invoer!$D$34*Berekeningen!C20 -> 115 | Z20: =Berekeningen!C20*Invoer!$D$35 -> 230 | AA20: =IF(Invoer!$F$42,J20*Invoer!$F$42,J20*Invoer!$D$42) -> 23.9085 | AB20: 368.9085 | AC20: 0.1 | AD20: =Invoer!$D$34*E20 -> 57.5 | AE20: =E20*Invoer!$D$35 -> 115 | AF20: =L20*Invoer!$D$36 -> 74.95125 | AG20: =IF(Invoer!$F$43,Invoer!$F$43*M20,Invoer!$D$43*M20) -> 51.747102 | AH20: 299.198352 | AI20: 0.7 | AJ20: =Invoer!$D$34*Berekeningen!G20 -> 402.5 | AK20: =IF(Invoer!$F$41,Invoer!$F$41*G20,Invoer!$D$41*G20) -> 201.25 | AL20: 603.75 | AM20: 1271.856852 | AO20: 3162.5 | AQ20: 3598.925 | AR20: 1271.856852 | AS20: 2327.068148 | AT20: 2300 | AU20: 27.068148 | AW20: 0.2 | AX20: 0.1 | AY20: 0.7 | AZ20: 27.068148 | BB20: 0.2 | BC20: 0.1 | BD20: 0.7 | BE20: 2327.068148
B21: 0.3 | C21: =B21*Invoer!$E$9 -> 172.5 | D21: 0.1 | E21: =D21*Invoer!$E$9 -> 57.5 | F21: 0.6 | G21: =F21*Invoer!$E$9 -> 345 | I21: 0.3 | J21: =I21*Invoer!$E$15 -> 56.925 | K21: 0.1 | L21: =K21*Invoer!$E$15 -> 18.975 | M21: =K21*Invoer!$E$20 -> 10.43625 | N21: 0.6 | O21: =N21*Invoer!$E$9 -> 345 | Q21: 0.3 | R21: =IF(Invoer!$F$28,J21*Invoer!$F$28,J21*Invoer!$D$28) -> 1138.5 | S21: 0.1 | T21: =IF(Invoer!$F$29,M21*Invoer!$F$29,M21*Invoer!$D$29) -> 626.175 | U21: 0.6 | V21: =IF(Invoer!$F$27,O21*Invoer!$F$27,O21*Invoer!$D$27) -> 1897.5 | X21: 0.3 | Y21: =Invoer!$D$34*Berekeningen!C21 -> 172.5 | Z21: =Berekeningen!C21*Invoer!$D$35 -> 345 | AA21: =IF(Invoer!$F$42,J21*Invoer!$F$42,J21*Invoer!$D$42) -> 35.86275 | AB21: 553.36275 | AC21: 0.1 | AD21: =Invoer!$D$34*E21 -> 57.5 | AE21: =E21*Invoer!$D$35 -> 115 | AF21: =L21*Invoer!$D$36 -> 74.95125 | AG21: =IF(Invoer!$F$43,Invoer!$F$43*M21,Invoer!$D$43*M21) -> 51.747102 | AH21: 299.198352 | AI21: 0.6 | AJ21: =Invoer!$D$34*Berekeningen!G21 -> 345 | AK21: =IF(Invoer!$F$41,Invoer!$F$41*G21,Invoer!$D$41*G21) -> 172.5 | AL21: 517.5 | AM21: 1370.061102 | AO21: 3162.5 | AQ21: 3662.175 | AR21: 1370.061102 | AS21: 2292.113898 | AT21: 2300 | AU21: -7.886102 | AW21: 0.3 | AX21: 0.1 | AY21: 0.6 | AZ21: -7.886102 | BB21: 0.3 | BC21: 0.1 | BD21: 0.6 | BE21: 2292.113898
B22: 0.4 | C22: =B22*Invoer!$E$9 -> 230 | D22: 0.1 | E22: =D22*Invoer!$E$9 -> 57.5 | F22: 0.5 | G22: =F22*Invoer!$E$9 -> 287.5 | I22: 0.4 | J22: =I22*Invoer!$E$15 -> 75.9 | K22: 0.1 | L22: =K22*Invoer!$E$15 -> 18.975 | M22: =K22*Invoer!$E$20 -> 10.43625 | N22: 0.5 | O22: =N22*Invoer!$E$9 -> 287.5 | Q22: 0.4 | R22: =IF(Invoer!$F$28,J22*Invoer!$F$28,J22*Invoer!$D$28) -> 1518 | S22: 0.1 | T22: =IF(Invoer!$F$29,M22*Invoer!$F$29,M22*Invoer!$D$29) -> 626.175 | U22: 0.5 | V22: =IF(Invoer!$F$27,O22*Invoer!$F$27,O22*Invoer!$D$27) -> 1581.25 | X22: 0.4 | Y22: =Invoer!$D$34*Berekeningen!C22 -> 230 | Z22: =Berekeningen!C22*Invoer!$D$35 -> 460 | AA22: =IF(Invoer!$F$42,J22*Invoer!$F$42,J22*Invoer!$D$42) -> 47.817 | AB22: 737.817 | AC22: 0.1 | AD22: =Invoer!$D$34*E22 -> 57.5 | AE22: =E22*Invoer!$D$35 -> 115 | AF22: =L22*Invoer!$D$36 -> 74.95125 | AG22: =IF(Invoer!$F$43,Invoer!$F$43*M22,Invoer!$D$43*M22) -> 51.747102 | AH22: 299.198352 | AI22: 0.5 | AJ22: =Invoer!$D$34*Berekeningen!G22 -> 287.5 | AK22: =IF(Invoer!$F$41,Invoer!$F$41*G22,Invoer!$D$41*G22) -> 143.75 | AL22: 431.25 | AM22: 1468.265352 | AO22: 3162.5 | AQ22: 3725.425 | AR22: 1468.265352 | AS22: 2257.159648 | AT22: 2300 | AU22: -42.840352 | AW22: 0.4 | AX22: 0.1 | AY22: 0.5 | AZ22: -42.840352 | BB22: 0.4 | BC22: 0.1 | BD22: 0.5 | BE22: 2257.159648
B23: 0.5 | C23: =B23*Invoer!$E$9 -> 287.5 | D23: 0.1 | E23: =D23*Invoer!$E$9 -> 57.5 | F23: 0.4 | G23: =F23*Invoer!$E$9 -> 230 | I23: 0.5 | J23: =I23*Invoer!$E$15 -> 94.875 | K23: 0.1 | L23: =K23*Invoer!$E$15 -> 18.975 | M23: =K23*Invoer!$E$20 -> 10.43625 | N23: 0.4 | O23: =N23*Invoer!$E$9 -> 230 | Q23: 0.5 | R23: =IF(Invoer!$F$28,J23*Invoer!$F$28,J23*Invoer!$D$28) -> 1897.5 | S23: 0.1 | T23: =IF(Invoer!$F$29,M23*Invoer!$F$29,M23*Invoer!$D$29) -> 626.175 | U23: 0.4 | V23: =IF(Invoer!$F$27,O23*Invoer!$F$27,O23*Invoer!$D$27) -> 1265 | X23: 0.5 | Y23: =Invoer!$D$34*Berekeningen!C23 -> 287.5 | Z23: =Berekeningen!C23*Invoer!$D$35 -> 575 | AA23: =IF(Invoer!$F$42,J23*Invoer!$F$42,J23*Invoer!$D$42) -> 59.77125 | AB23: 922.27125 | AC23: 0.1 | AD23: =Invoer!$D$34*E23 -> 57.5 | AE23: =E23*Invoer!$D$35 -> 115 | AF23: =L23*Invoer!$D$36 -> 74.95125 | AG23: =IF(Invoer!$F$43,Invoer!$F$43*M23,Invoer!$D$43*M23) -> 51.747102 | AH23: 299.198352 | AI23: 0.4 | AJ23: =Invoer!$D$34*Berekeningen!G23 -> 230 | AK23: =IF(Invoer!$F$41,Invoer!$F$41*G23,Invoer!$D$41*G23) -> 115 | AL23: 345 | AM23: 1566.469602 | AO23: 3162.5 | AQ23: 3788.675 | AR23: 1566.469602 | AS23: 2222.205398 | AT23: 2300 | AU23: -77.794602 | AW23: 0.5 | AX23: 0.1 | AY23: 0.4 | AZ23: -77.794602 | BB23: 0.5 | BC23: 0.1 | BD23: 0.4 | BE23: 2222.205398
B24: 0.6 | C24: =B24*Invoer!$E$9 -> 345 | D24: 0.1 | E24: =D24*Invoer!$E$9 -> 57.5 | F24: 0.3 | G24: =F24*Invoer!$E$9 -> 172.5 | I24: 0.6 | J24: =I24*Invoer!$E$15 -> 113.85 | K24: 0.1 | L24: =K24*Invoer!$E$15 -> 18.975 | M24: =K24*Invoer!$E$20 -> 10.43625 | N24: 0.3 | O24: =N24*Invoer!$E$9 -> 172.5 | Q24: 0.6 | R24: =IF(Invoer!$F$28,J24*Invoer!$F$28,J24*Invoer!$D$28) -> 2277 | S24: 0.1 | T24: =IF(Invoer!$F$29,M24*Invoer!$F$29,M24*Invoer!$D$29) -> 626.175 | U24: 0.3 | V24: =IF(Invoer!$F$27,O24*Invoer!$F$27,O24*Invoer!$D$27) -> 948.75 | X24: 0.6 | Y24: =Invoer!$D$34*Berekeningen!C24 -> 345 | Z24: =Berekeningen!C24*Invoer!$D$35 -> 690 | AA24: =IF(Invoer!$F$42,J24*Invoer!$F$42,J24*Invoer!$D$42) -> 71.7255 | AB24: 1106.7255 | AC24: 0.1 | AD24: =Invoer!$D$34*E24 -> 57.5 | AE24: =E24*Invoer!$D$35 -> 115 | AF24: =L24*Invoer!$D$36 -> 74.95125 | AG24: =IF(Invoer!$F$43,Invoer!$F$43*M24,Invoer!$D$43*M24) -> 51.747102 | AH24: 299.198352 | AI24: 0.3 | AJ24: =Invoer!$D$34*Berekeningen!G24 -> 172.5 | AK24: =IF(Invoer!$F$41,Invoer!$F$41*G24,Invoer!$D$41*G24) -> 86.25 | AL24: 258.75 | AM24: 1664.673852 | AO24: 3162.5 | AQ24: 3851.925 | AR24: 1664.673852 | AS24: 2187.251148 | AT24: 2300 | AU24: -112.748852 | AW24: 0.6 | AX24: 0.1 | AY24: 0.3 | AZ24: -112.748852 | BB24: 0.6 | BC24: 0.1 | BD24: 0.3 | BE24: 2187.251148
B25: 0.7 | C25: =B25*Invoer!$E$9 -> 402.5 | D25: 0.1 | E25: =D25*Invoer!$E$9 -> 57.5 | F25: 0.2 | G25: =F25*Invoer!$E$9 -> 115 | I25: 0.7 | J25: =I25*Invoer!$E$15 -> 132.825 | K25: 0.1 | L25: =K25*Invoer!$E$15 -> 18.975 | M25: =K25*Invoer!$E$20 -> 10.43625 | N25: 0.2 | O25: =N25*Invoer!$E$9 -> 115 | Q25: 0.7 | R25: =IF(Invoer!$F$28,J25*Invoer!$F$28,J25*Invoer!$D$28) -> 2656.5 | S25: 0.1 | T25: =IF(Invoer!$F$29,M25*Invoer!$F$29,M25*Invoer!$D$29) -> 626.175 | U25: 0.2 | V25: =IF(Invoer!$F$27,O25*Invoer!$F$27,O25*Invoer!$D$27) -> 632.5 | X25: 0.7 | Y25: =Invoer!$D$34*Berekeningen!C25 -> 402.5 | Z25: =Berekeningen!C25*Invoer!$D$35 -> 805 | AA25: =IF(Invoer!$F$42,J25*Invoer!$F$42,J25*Invoer!$D$42) -> 83.67975 | AB25: 1291.17975 | AC25: 0.1 | AD25: =Invoer!$D$34*E25 -> 57.5 | AE25: =E25*Invoer!$D$35 -> 115 | AF25: =L25*Invoer!$D$36 -> 74.95125 | AG25: =IF(Invoer!$F$43,Invoer!$F$43*M25,Invoer!$D$43*M25) -> 51.747102 | AH25: 299.198352 | AI25: 0.2 | AJ25: =Invoer!$D$34*Berekeningen!G25 -> 115 | AK25: =IF(Invoer!$F$41,Invoer!$F$41*G25,Invoer!$D$41*G25) -> 57.5 | AL25: 172.5 | AM25: 1762.878102 | AO25: 3162.5 | AQ25: 3915.175 | AR25: 1762.878102 | AS25: 2152.296898 | AT25: 2300 | AU25: -147.703102 | AW25: 0.7 | AX25: 0.1 | AY25: 0.2 | AZ25: -147.703102 | BB25: 0.7 | BC25: 0.1 | BD25: 0.2 | BE25: 2152.296898
B26: 0.8 | C26: =B26*Invoer!$E$9 -> 460 | D26: 0.1 | E26: =D26*Invoer!$E$9 -> 57.5 | F26: 0.1 | G26: =F26*Invoer!$E$9 -> 57.5 | I26: 0.8 | J26: =I26*Invoer!$E$15 -> 151.8 | K26: 0.1 | L26: =K26*Invoer!$E$15 -> 18.975 | M26: =K26*Invoer!$E$20 -> 10.43625 | N26: 0.1 | O26: =N26*Invoer!$E$9 -> 57.5 | Q26: 0.8 | R26: =IF(Invoer!$F$28,J26*Invoer!$F$28,J26*Invoer!$D$28) -> 3036 | S26: 0.1 | T26: =IF(Invoer!$F$29,M26*Invoer!$F$29,M26*Invoer!$D$29) -> 626.175 | U26: 0.1 | V26: =IF(Invoer!$F$27,O26*Invoer!$F$27,O26*Invoer!$D$27) -> 316.25 | X26: 0.8 | Y26: =Invoer!$D$34*Berekeningen!C26 -> 460 | Z26: =Berekeningen!C26*Invoer!$D$35 -> 920 | AA26: =IF(Invoer!$F$42,J26*Invoer!$F$42,J26*Invoer!$D$42) -> 95.634 | AB26: 1475.634 | AC26: 0.1 | AD26: =Invoer!$D$34*E26 -> 57.5 | AE26: =E26*Invoer!$D$35 -> 115 | AF26: =L26*Invoer!$D$36 -> 74.95125 | AG26: =IF(Invoer!$F$43,Invoer!$F$43*M26,Invoer!$D$43*M26) -> 51.747102 | AH26: 299.198352 | AI26: 0.1 | AJ26: =Invoer!$D$34*Berekeningen!G26 -> 57.5 | AK26: =IF(Invoer!$F$41,Invoer!$F$41*G26,Invoer!$D$41*G26) -> 28.75 | AL26: 86.25 | AM26: 1861.082352 | AO26: 3162.5 | AQ26: 3978.425 | AR26: 1861.082352 | AS26: 2117.342648 | AT26: 2300 | AU26: -182.657352 | AW26: 0.8 | AX26: 0.1 | AY26: 0.1 | AZ26: -182.657352 | BB26: 0.8 | BC26: 0.1 | BD26: 0.1 | BE26: 2117.342648
B27: 0.9 | C27: =B27*Invoer!$E$9 -> 517.5 | D27: 0.1 | E27: =D27*Invoer!$E$9 -> 57.5 | F27: 0 | G27: =F27*Invoer!$E$9 -> 0 | I27: 0.9 | J27: =I27*Invoer!$E$15 -> 170.775 | K27: 0.1 | L27: =K27*Invoer!$E$15 -> 18.975 | M27: =K27*Invoer!$E$20 -> 10.43625 | N27: 0 | O27: =N27*Invoer!$E$9 -> 0 | Q27: 0.9 | R27: =IF(Invoer!$F$28,J27*Invoer!$F$28,J27*Invoer!$D$28) -> 3415.5 | S27: 0.1 | T27: =IF(Invoer!$F$29,M27*Invoer!$F$29,M27*Invoer!$D$29) -> 626.175 | U27: 0 | V27: =IF(Invoer!$F$27,O27*Invoer!$F$27,O27*Invoer!$D$27) -> 0 | X27: 0.9 | Y27: =Invoer!$D$34*Berekeningen!C27 -> 517.5 | Z27: =Berekeningen!C27*Invoer!$D$35 -> 1035 | AA27: =IF(Invoer!$F$42,J27*Invoer!$F$42,J27*Invoer!$D$42) -> 107.58825 | AB27: 1660.08825 | AC27: 0.1 | AD27: =Invoer!$D$34*E27 -> 57.5 | AE27: =E27*Invoer!$D$35 -> 115 | AF27: =L27*Invoer!$D$36 -> 74.95125 | AG27: =IF(Invoer!$F$43,Invoer!$F$43*M27,Invoer!$D$43*M27) -> 51.747102 | AH27: 299.198352 | AI27: 0 | AJ27: =Invoer!$D$34*Berekeningen!G27 -> 0 | AK27: =IF(Invoer!$F$41,Invoer!$F$41*G27,Invoer!$D$41*G27) -> 0 | AL27: 0 | AM27: 1959.286602 | AO27: 3162.5 | AQ27: 4041.675 | AR27: 1959.286602 | AS27: 2082.388398 | AT27: 2300 | AU27: -217.611602 | AW27: 0.9 | AX27: 0.1 | AY27: 0 | AZ27: -217.611602 | BB27: 0.9 | BC27: 0.1 | BD27: 0 | BE27: 2082.388398
B28: 0 | C28: =B28*Invoer!$E$9 -> 0 | D28: 0.2 | E28: =D28*Invoer!$E$9 -> 115 | F28: 0.8 | G28: =F28*Invoer!$E$9 -> 460 | I28: 0 | J28: =I28*Invoer!$E$15 -> 0 | K28: 0.2 | L28: =K28*Invoer!$E$15 -> 37.95 | M28: =K28*Invoer!$E$20 -> 20.8725 | N28: 0.8 | O28: =N28*Invoer!$E$9 -> 460 | Q28: 0 | R28: =IF(Invoer!$F$28,J28*Invoer!$F$28,J28*Invoer!$D$28) -> 0 | S28: 0.2 | T28: =IF(Invoer!$F$29,M28*Invoer!$F$29,M28*Invoer!$D$29) -> 1252.35 | U28: 0.8 | V28: =IF(Invoer!$F$27,O28*Invoer!$F$27,O28*Invoer!$D$27) -> 2530 | X28: 0 | Y28: =Invoer!$D$34*Berekeningen!C28 -> 0 | Z28: =Berekeningen!C28*Invoer!$D$35 -> 0 | AA28: =IF(Invoer!$F$42,J28*Invoer!$F$42,J28*Invoer!$D$42) -> 0 | AB28: 0 | AC28: 0.2 | AD28: =Invoer!$D$34*E28 -> 115 | AE28: =E28*Invoer!$D$35 -> 230 | AF28: =L28*Invoer!$D$36 -> 149.9025 | AG28: =IF(Invoer!$F$43,Invoer!$F$43*M28,Invoer!$D$43*M28) -> 103.494204 | AH28: 598.396704 | AI28: 0.8 | AJ28: =Invoer!$D$34*Berekeningen!G28 -> 460 | AK28: =IF(Invoer!$F$41,Invoer!$F$41*G28,Invoer!$D$41*G28) -> 230 | AL28: 690 | AM28: 1288.396704 | AO28: 3162.5 | AQ28: 3782.35 | AR28: 1288.396704 | AS28: 2493.953296 | AT28: 2300 | AU28: 193.953296 | AW28: 0 | AX28: 0.2 | AY28: 0.8 | AZ28: 193.953296 | BB28: 0 | BC28: 0.2 | BD28: 0.8 | BE28: 2493.953296
B29: 0.1 | C29: =B29*Invoer!$E$9 -> 57.5 | D29: 0.2 | E29: =D29*Invoer!$E$9 -> 115 | F29: 0.7 | G29: =F29*Invoer!$E$9 -> 402.5 | I29: 0.1 | J29: =I29*Invoer!$E$15 -> 18.975 | K29: 0.2 | L29: =K29*Invoer!$E$15 -> 37.95 | M29: =K29*Invoer!$E$20 -> 20.8725 | N29: 0.7 | O29: =N29*Invoer!$E$9 -> 402.5 | Q29: 0.1 | R29: =IF(Invoer!$F$28,J29*Invoer!$F$28,J29*Invoer!$D$28) -> 379.5 | S29: 0.2 | T29: =IF(Invoer!$F$29,M29*Invoer!$F$29,M29*Invoer!$D$29) -> 1252.35 | U29: 0.7 | V29: =IF(Invoer!$F$27,O29*Invoer!$F$27,O29*Invoer!$D$27) -> 2213.75 | X29: 0.1 | Y29: =Invoer!$D$34*Berekeningen!C29 -> 57.5 | Z29: =Berekeningen!C29*Invoer!$D$35 -> 115 | AA29: =IF(Invoer!$F$42,J29*Invoer!$F$42,J29*Invoer!$D$42) -> 11.95425 | AB29: 184.45425 | AC29: 0.2 | AD29: =Invoer!$D$34*E29 -> 115 | AE29: =E29*Invoer!$D$35 -> 230 | AF29: =L29*Invoer!$D$36 -> 149.9025 | AG29: =IF(Invoer!$F$43,Invoer!$F$43*M29,Invoer!$D$43*M29) -> 103.494204 | AH29: 598.396704 | AI29: 0.7 | AJ29: =Invoer!$D$34*Berekeningen!G29 -> 402.5 | AK29: =IF(Invoer!$F$41,Invoer!$F$41*G29,Invoer!$D$41*G29) -> 201.25 | AL29: 603.75 | AM29: 1386.600954 | AO29: 3162.5 | AQ29: 3845.6 | AR29: 1386.600954 | AS29: 2458.999046 | AT29: 2300 | AU29: 158.999046 | AW29: 0.1 | AX29: 0.2 | AY29: 0.7 | AZ29: 158.999046 | BB29: 0.1 | BC29: 0.2 | BD29: 0.7 | BE29: 2458.999046
B30: 0.2 | C30: =B30*Invoer!$E$9 -> 115 | D30: 0.2 | E30: =D30*Invoer!$E$9 -> 115 | F30: 0.6 | G30: =F30*Invoer!$E$9 -> 345 | I30: 0.2 | J30: =I30*Invoer!$E$15 -> 37.95 | K30: 0.2 | L30: =K30*Invoer!$E$15 -> 37.95 | M30: =K30*Invoer!$E$20 -> 20.8725 | N30: 0.6 | O30: =N30*Invoer!$E$9 -> 345 | Q30: 0.2 | R30: =IF(Invoer!$F$28,J30*Invoer!$F$28,J30*Invoer!$D$28) -> 759 | S30: 0.2 | T30: =IF(Invoer!$F$29,M30*Invoer!$F$29,M30*Invoer!$D$29) -> 1252.35 | U30: 0.6 | V30: =IF(Invoer!$F$27,O30*Invoer!$F$27,O30*Invoer!$D$27) -> 1897.5 | X30: 0.2 | Y30: =Invoer!$D$34*Berekeningen!C30 -> 115 | Z30: =Berekeningen!C30*Invoer!$D$35 -> 230 | AA30: =IF(Invoer!$F$42,J30*Invoer!$F$42,J30*Invoer!$D$42) -> 23.9085 | AB30: 368.9085 | AC30: 0.2 | AD30: =Invoer!$D$34*E30 -> 115 | AE30: =E30*Invoer!$D$35 -> 230 | AF30: =L30*Invoer!$D$36 -> 149.9025 | AG30: =IF(Invoer!$F$43,Invoer!$F$43*M30,Invoer!$D$43*M30) -> 103.494204 | AH30: 598.396704 | AI30: 0.6 | AJ30: =Invoer!$D$34*Berekeningen!G30 -> 345 | AK30: =IF(Invoer!$F$41,Invoer!$F$41*G30,Invoer!$D$41*G30) -> 172.5 | AL30: 517.5 | AM30: 1484.805204 | AO30: 3162.5 | AQ30: 3908.85 | AR30: 1484.805204 | AS30: 2424.044796 | AT30: 2300 | AU30: 124.044796 | AW30: 0.2 | AX30: 0.2 | AY30: 0.6 | AZ30: 124.044796 | BB30: 0.2 | BC30: 0.2 | BD30: 0.6 | BE30: 2424.044796
B31: 0.3 | C31: =B31*Invoer!$E$9 -> 172.5 | D31: 0.2 | E31: =D31*Invoer!$E$9 -> 115 | F31: 0.5 | G31: =F31*Invoer!$E$9 -> 287.5 | I31: 0.3 | J31: =I31*Invoer!$E$15 -> 56.925 | K31: 0.2 | L31: =K31*Invoer!$E$15 -> 37.95 | M31: =K31*Invoer!$E$20 -> 20.8725 | N31: 0.5 | O31: =N31*Invoer!$E$9 -> 287.5 | Q31: 0.3 | R31: =IF(Invoer!$F$28,J31*Invoer!$F$28,J31*Invoer!$D$28) -> 1138.5 | S31: 0.2 | T31: =IF(Invoer!$F$29,M31*Invoer!$F$29,M31*Invoer!$D$29) -> 1252.35 | U31: 0.5 | V31: =IF(Invoer!$F$27,O31*Invoer!$F$27,O31*Invoer!$D$27) -> 1581.25 | X31: 0.3 | Y31: =Invoer!$D$34*Berekeningen!C31 -> 172.5 | Z31: =Berekeningen!C31*Invoer!$D$35 -> 345 | AA31: =IF(Invoer!$F$42,J31*Invoer!$F$42,J31*Invoer!$D$42) -> 35.86275 | AB31: 553.36275 | AC31: 0.2 | AD31: =Invoer!$D$34*E31 -> 115 | AE31: =E31*Invoer!$D$35 -> 230 | AF31: =L31*Invoer!$D$36 -> 149.9025 | AG31: =IF(Invoer!$F$43,Invoer!$F$43*M31,Invoer!$D$43*M31) -> 103.494204 | AH31: 598.396704 | AI31: 0.5 | AJ31: =Invoer!$D$34*Berekeningen!G31 -> 287.5 | AK31: =IF(Invoer!$F$41,Invoer!$F$41*G31,Invoer!$D$41*G31) -> 143.75 | AL31: 431.25 | AM31: 1583.009454 | AO31: 3162.5 | AQ31: 3972.1 | AR31: 1583.009454 | AS31: 2389.090546 | AT31: 2300 | AU31: 89.090546 | AW31: 0.3 | AX31: 0.2 | AY31: 0.5 | AZ31: 89.090546 | BB31: 0.3 | BC31: 0.2 | BD31: 0.5 | BE31: 2389.090546
B32: 0.4 | C32: =B32*Invoer!$E$9 -> 230 | D32: 0.2 | E32: =D32*Invoer!$E$9 -> 115 | F32: 0.4 | G32: =F32*Invoer!$E$9 -> 230 | I32: 0.4 | J32: =I32*Invoer!$E$15 -> 75.9 | K32: 0.2 | L32: =K32*Invoer!$E$15 -> 37.95 | M32: =K32*Invoer!$E$20 -> 20.8725 | N32: 0.4 | O32: =N32*Invoer!$E$9 -> 230 | Q32: 0.4 | R32: =IF(Invoer!$F$28,J32*Invoer!$F$28,J32*Invoer!$D$28) -> 1518 | S32: 0.2 | T32: =IF(Invoer!$F$29,M32*Invoer!$F$29,M32*Invoer!$D$29) -> 1252.35 | U32: 0.4 | V32: =IF(Invoer!$F$27,O32*Invoer!$F$27,O32*Invoer!$D$27) -> 1265 | X32: 0.4 | Y32: =Invoer!$D$34*Berekeningen!C32 -> 230 | Z32: =Berekeningen!C32*Invoer!$D$35 -> 460 | AA32: =IF(Invoer!$F$42,J32*Invoer!$F$42,J32*Invoer!$D$42) -> 47.817 | AB32: 737.817 | AC32: 0.2 | AD32: =Invoer!$D$34*E32 -> 115 | AE32: =E32*Invoer!$D$35 -> 230 | AF32: =L32*Invoer!$D$36 -> 149.9025 | AG32: =IF(Invoer!$F$43,Invoer!$F$43*M32,Invoer!$D$43*M32) -> 103.494204 | AH32: 598.396704 | AI32: 0.4 | AJ32: =Invoer!$D$34*Berekeningen!G32 -> 230 | AK32: =IF(Invoer!$F$41,Invoer!$F$41*G32,Invoer!$D$41*G32) -> 115 | AL32: 345 | AM32: 1681.213704 | AO32: 3162.5 | AQ32: 4035.35 | AR32: 1681.213704 | AS32: 2354.136296 | AT32: 2300 | AU32: 54.136296 | AW32: 0.4 | AX32: 0.2 | AY32: 0.4 | AZ32: 54.136296 | BB32: 0.4 | BC32: 0.2 | BD32: 0.4 | BE32: 2354.136296
B33: 0.5 | C33: =B33*Invoer!$E$9 -> 287.5 | D33: 0.2 | E33: =D33*Invoer!$E$9 -> 115 | F33: 0.3 | G33: =F33*Invoer!$E$9 -> 172.5 | I33: 0.5 | J33: =I33*Invoer!$E$15 -> 94.875 | K33: 0.2 | L33: =K33*Invoer!$E$15 -> 37.95 | M33: =K33*Invoer!$E$20 -> 20.8725 | N33: 0.3 | O33: =N33*Invoer!$E$9 -> 172.5 | Q33: 0.5 | R33: =IF(Invoer!$F$28,J33*Invoer!$F$28,J33*Invoer!$D$28) -> 1897.5 | S33: 0.2 | T33: =IF(Invoer!$F$29,M33*Invoer!$F$29,M33*Invoer!$D$29) -> 1252.35 | U33: 0.3 | V33: =IF(Invoer!$F$27,O33*Invoer!$F$27,O33*Invoer!$D$27) -> 948.75 | X33: 0.5 | Y33: =Invoer!$D$34*Berekeningen!C33 -> 287.5 | Z33: =Berekeningen!C33*Invoer!$D$35 -> 575 | AA33: =IF(Invoer!$F$42,J33*Invoer!$F$42,J33*Invoer!$D$42) -> 59.77125 | AB33: 922.27125 | AC33: 0.2 | AD33: =Invoer!$D$34*E33 -> 115 | AE33: =E33*Invoer!$D$35 -> 230 | AF33: =L33*Invoer!$D$36 -> 149.9025 | AG33: =IF(Invoer!$F$43,Invoer!$F$43*M33,Invoer!$D$43*M33) -> 103.494204 | AH33: 598.396704 | AI33: 0.3 | AJ33: =Invoer!$D$34*Berekeningen!G33 -> 172.5 | AK33: =IF(Invoer!$F$41,Invoer!$F$41*G33,Invoer!$D$41*G33) -> 86.25 | AL33: 258.75 | AM33: 1779.417954 | AO33: 3162.5 | AQ33: 4098.6 | AR33: 1779.417954 | AS33: 2319.182046 | AT33: 2300 | AU33: 19.182046 | AW33: 0.5 | AX33: 0.2 | AY33: 0.3 | AZ33: 19.182046 | BB33: 0.5 | BC33: 0.2 | BD33: 0.3 | BE33: 2319.182046
B34: 0.6 | C34: =B34*Invoer!$E$9 -> 345 | D34: 0.2 | E34: =D34*Invoer!$E$9 -> 115 | F34: 0.2 | G34: =F34*Invoer!$E$9 -> 115 | I34: 0.6 | J34: =I34*Invoer!$E$15 -> 113.85 | K34: 0.2 | L34: =K34*Invoer!$E$15 -> 37.95 | M34: =K34*Invoer!$E$20 -> 20.8725 | N34: 0.2 | O34: =N34*Invoer!$E$9 -> 115 | Q34: 0.6 | R34: =IF(Invoer!$F$28,J34*Invoer!$F$28,J34*Invoer!$D$28) -> 2277 | S34: 0.2 | T34: =IF(Invoer!$F$29,M34*Invoer!$F$29,M34*Invoer!$D$29) -> 1252.35 | U34: 0.2 | V34: =IF(Invoer!$F$27,O34*Invoer!$F$27,O34*Invoer!$D$27) -> 632.5 | X34: 0.6 | Y34: =Invoer!$D$34*Berekeningen!C34 -> 345 | Z34: =Berekeningen!C34*Invoer!$D$35 -> 690 | AA34: =IF(Invoer!$F$42,J34*Invoer!$F$42,J34*Invoer!$D$42) -> 71.7255 | AB34: 1106.7255 | AC34: 0.2 | AD34: =Invoer!$D$34*E34 -> 115 | AE34: =E34*Invoer!$D$35 -> 230 | AF34: =L34*Invoer!$D$36 -> 149.9025 | AG34: =IF(Invoer!$F$43,Invoer!$F$43*M34,Invoer!$D$43*M34) -> 103.494204 | AH34: 598.396704 | AI34: 0.2 | AJ34: =Invoer!$D$34*Berekeningen!G34 -> 115 | AK34: =IF(Invoer!$F$41,Invoer!$F$41*G34,Invoer!$D$41*G34) -> 57.5 | AL34: 172.5 | AM34: 1877.622204 | AO34: 3162.5 | AQ34: 4161.85 | AR34: 1877.622204 | AS34: 2284.227796 | AT34: 2300 | AU34: -15.772204 | AW34: 0.6 | AX34: 0.2 | AY34: 0.2 | AZ34: -15.772204 | BB34: 0.6 | BC34: 0.2 | BD34: 0.2 | BE34: 2284.227796
B35: 0.7 | C35: =B35*Invoer!$E$9 -> 402.5 | D35: 0.2 | E35: =D35*Invoer!$E$9 -> 115 | F35: 0.1 | G35: =F35*Invoer!$E$9 -> 57.5 | I35: 0.7 | J35: =I35*Invoer!$E$15 -> 132.825 | K35: 0.2 | L35: =K35*Invoer!$E$15 -> 37.95 | M35: =K35*Invoer!$E$20 -> 20.8725 | N35: 0.1 | O35: =N35*Invoer!$E$9 -> 57.5 | Q35: 0.7 | R35: =IF(Invoer!$F$28,J35*Invoer!$F$28,J35*Invoer!$D$28) -> 2656.5 | S35: 0.2 | T35: =IF(Invoer!$F$29,M35*Invoer!$F$29,M35*Invoer!$D$29) -> 1252.35 | U35: 0.1 | V35: =IF(Invoer!$F$27,O35*Invoer!$F$27,O35*Invoer!$D$27) -> 316.25 | X35: 0.7 | Y35: =Invoer!$D$34*Berekeningen!C35 -> 402.5 | Z35: =Berekeningen!C35*Invoer!$D$35 -> 805 | AA35: =IF(Invoer!$F$42,J35*Invoer!$F$42,J35*Invoer!$D$42) -> 83.67975 | AB35: 1291.17975 | AC35: 0.2 | AD35: =Invoer!$D$34*E35 -> 115 | AE35: =E35*Invoer!$D$35 -> 230 | AF35: =L35*Invoer!$D$36 -> 149.9025 | AG35: =IF(Invoer!$F$43,Invoer!$F$43*M35,Invoer!$D$43*M35) -> 103.494204 | AH35: 598.396704 | AI35: 0.1 | AJ35: =Invoer!$D$34*Berekeningen!G35 -> 57.5 | AK35: =IF(Invoer!$F$41,Invoer!$F$41*G35,Invoer!$D$41*G35) -> 28.75 | AL35: 86.25 | AM35: 1975.826454 | AO35: 3162.5 | AQ35: 4225.1 | AR35: 1975.826454 | AS35: 2249.273546 | AT35: 2300 | AU35: -50.726454 | AW35: 0.7 | AX35: 0.2 | AY35: 0.1 | AZ35: -50.726454 | BB35: 0.7 | BC35: 0.2 | BD35: 0.1 | BE35: 2249.273546
B36: 0.8 | C36: =B36*Invoer!$E$9 -> 460 | D36: 0.2 | E36: =D36*Invoer!$E$9 -> 115 | F36: 0 | G36: =F36*Invoer!$E$9 -> 0 | I36: 0.8 | J36: =I36*Invoer!$E$15 -> 151.8 | K36: 0.2 | L36: =K36*Invoer!$E$15 -> 37.95 | M36: =K36*Invoer!$E$20 -> 20.8725 | N36: 0 | O36: =N36*Invoer!$E$9 -> 0 | Q36: 0.8 | R36: =IF(Invoer!$F$28,J36*Invoer!$F$28,J36*Invoer!$D$28) -> 3036 | S36: 0.2 | T36: =IF(Invoer!$F$29,M36*Invoer!$F$29,M36*Invoer!$D$29) -> 1252.35 | U36: 0 | V36: =IF(Invoer!$F$27,O36*Invoer!$F$27,O36*Invoer!$D$27) -> 0 | X36: 0.8 | Y36: =Invoer!$D$34*Berekeningen!C36 -> 460 | Z36: =Berekeningen!C36*Invoer!$D$35 -> 920 | AA36: =IF(Invoer!$F$42,J36*Invoer!$F$42,J36*Invoer!$D$42) -> 95.634 | AB36: 1475.634 | AC36: 0.2 | AD36: =Invoer!$D$34*E36 -> 115 | AE36: =E36*Invoer!$D$35 -> 230 | AF36: =L36*Invoer!$D$36 -> 149.9025 | AG36: =IF(Invoer!$F$43,Invoer!$F$43*M36,Invoer!$D$43*M36) -> 103.494204 | AH36: 598.396704 | AI36: 0 | AJ36: =Invoer!$D$34*Berekeningen!G36 -> 0 | AK36: =IF(Invoer!$F$41,Invoer!$F$41*G36,Invoer!$D$41*G36) -> 0 | AL36: 0 | AM36: 2074.030704 | AO36: 3162.5 | AQ36: 4288.35 | AR36: 2074.030704 | AS36: 2214.319296 | AT36: 2300 | AU36: -85.680704 | AW36: 0.8 | AX36: 0.2 | AY36: 0 | AZ36: -85.680704 | BB36: 0.8 | BC36: 0.2 | BD36: 0 | BE36: 2214.319296
B37: 0 | C37: =B37*Invoer!$E$9 -> 0 | D37: 0.3 | E37: =D37*Invoer!$E$9 -> 172.5 | F37: 0.7 | G37: =F37*Invoer!$E$9 -> 402.5 | I37: 0 | J37: =I37*Invoer!$E$15 -> 0 | K37: 0.3 | L37: =K37*Invoer!$E$15 -> 56.925 | M37: =K37*Invoer!$E$20 -> 31.30875 | N37: 0.7 | O37: =N37*Invoer!$E$9 -> 402.5 | Q37: 0 | R37: =IF(Invoer!$F$28,J37*Invoer!$F$28,J37*Invoer!$D$28) -> 0 | S37: 0.3 | T37: =IF(Invoer!$F$29,M37*Invoer!$F$29,M37*Invoer!$D$29) -> 1878.525 | U37: 0.7 | V37: =IF(Invoer!$F$27,O37*Invoer!$F$27,O37*Invoer!$D$27) -> 2213.75 | X37: 0 | Y37: =Invoer!$D$34*Berekeningen!C37 -> 0 | Z37: =Berekeningen!C37*Invoer!$D$35 -> 0 | AA37: =IF(Invoer!$F$42,J37*Invoer!$F$42,J37*Invoer!$D$42) -> 0 | AB37: 0 | AC37: 0.3 | AD37: =Invoer!$D$34*E37 -> 172.5 | AE37: =E37*Invoer!$D$35 -> 345 | AF37: =L37*Invoer!$D$36 -> 224.85375 | AG37: =IF(Invoer!$F$43,Invoer!$F$43*M37,Invoer!$D$43*M37) -> 155.241306 | AH37: 897.595056 | AI37: 0.7 | AJ37: =Invoer!$D$34*Berekeningen!G37 -> 402.5 | AK37: =IF(Invoer!$F$41,Invoer!$F$41*G37,Invoer!$D$41*G37) -> 201.25 | AL37: 603.75 | AM37: 1501.345056 | AO37: 3162.5 | AQ37: 4092.275 | AR37: 1501.345056 | AS37: 2590.929944 | AT37: 2300 | AU37: 290.929944 | AW37: 0 | AX37: 0.3 | AY37: 0.7 | AZ37: 290.929944 | BB37: 0 | BC37: 0.3 | BD37: 0.7 | BE37: 2590.929944
B38: 0.1 | C38: =B38*Invoer!$E$9 -> 57.5 | D38: 0.3 | E38: =D38*Invoer!$E$9 -> 172.5 | F38: 0.6 | G38: =F38*Invoer!$E$9 -> 345 | I38: 0.1 | J38: =I38*Invoer!$E$15 -> 18.975 | K38: 0.3 | L38: =K38*Invoer!$E$15 -> 56.925 | M38: =K38*Invoer!$E$20 -> 31.30875 | N38: 0.6 | O38: =N38*Invoer!$E$9 -> 345 | Q38: 0.1 | R38: =IF(Invoer!$F$28,J38*Invoer!$F$28,J38*Invoer!$D$28) -> 379.5 | S38: 0.3 | T38: =IF(Invoer!$F$29,M38*Invoer!$F$29,M38*Invoer!$D$29) -> 1878.525 | U38: 0.6 | V38: =IF(Invoer!$F$27,O38*Invoer!$F$27,O38*Invoer!$D$27) -> 1897.5 | X38: 0.1 | Y38: =Invoer!$D$34*Berekeningen!C38 -> 57.5 | Z38: =Berekeningen!C38*Invoer!$D$35 -> 115 | AA38: =IF(Invoer!$F$42,J38*Invoer!$F$42,J38*Invoer!$D$42) -> 11.95425 | AB38: 184.45425 | AC38: 0.3 | AD38: =Invoer!$D$34*E38 -> 172.5 | AE38: =E38*Invoer!$D$35 -> 345 | AF38: =L38*Invoer!$D$36 -> 224.85375 | AG38: =IF(Invoer!$F$43,Invoer!$F$43*M38,Invoer!$D$43*M38) -> 155.241306 | AH38: 897.595056 | AI38: 0.6 | AJ38: =Invoer!$D$34*Berekeningen!G38 -> 345 | AK38: =IF(Invoer!$F$41,Invoer!$F$41*G38,Invoer!$D$41*G38) -> 172.5 | AL38: 517.5 | AM38: 1599.549306 | AO38: 3162.5 | AQ38: 4155.525 | AR38: 1599.549306 | AS38: 2555.975694 | AT38: 2300 | AU38: 255.975694 | AW38: 0.1 | AX38: 0.3 | AY38: 0.6 | AZ38: 255.975694 | BB38: 0.1 | BC38: 0.3 | BD38: 0.6 | BE38: 2555.975694
B39: 0.2 | C39: =B39*Invoer!$E$9 -> 115 | D39: 0.3 | E39: =D39*Invoer!$E$9 -> 172.5 | F39: 0.5 | G39: =F39*Invoer!$E$9 -> 287.5 | I39: 0.2 | J39: =I39*Invoer!$E$15 -> 37.95 | K39: 0.3 | L39: =K39*Invoer!$E$15 -> 56.925 | M39: =K39*Invoer!$E$20 -> 31.30875 | N39: 0.5 | O39: =N39*Invoer!$E$9 -> 287.5 | Q39: 0.2 | R39: =IF(Invoer!$F$28,J39*Invoer!$F$28,J39*Invoer!$D$28) -> 759 | S39: 0.3 | T39: =IF(Invoer!$F$29,M39*Invoer!$F$29,M39*Invoer!$D$29) -> 1878.525 | U39: 0.5 | V39: =IF(Invoer!$F$27,O39*Invoer!$F$27,O39*Invoer!$D$27) -> 1581.25 | X39: 0.2 | Y39: =Invoer!$D$34*Berekeningen!C39 -> 115 | Z39: =Berekeningen!C39*Invoer!$D$35 -> 230 | AA39: =IF(Invoer!$F$42,J39*Invoer!$F$42,J39*Invoer!$D$42) -> 23.9085 | AB39: 368.9085 | AC39: 0.3 | AD39: =Invoer!$D$34*E39 -> 172.5 | AE39: =E39*Invoer!$D$35 -> 345 | AF39: =L39*Invoer!$D$36 -> 224.85375 | AG39: =IF(Invoer!$F$43,Invoer!$F$43*M39,Invoer!$D$43*M39) -> 155.241306 | AH39: 897.595056 | AI39: =100%-AC39-X39 -> 0.5 | AJ39: =Invoer!$D$34*Berekeningen!G39 -> 287.5 | AK39: =IF(Invoer!$F$41,Invoer!$F$41*G39,Invoer!$D$41*G39) -> 143.75 | AL39: 431.25 | AM39: =AB39+AH39+AL39 -> 1697.753556 | AO39: 3162.5 | AQ39: =R39+T39+V39 -> 4218.775 | AR39: 1697.753556 | AS39: 2521.021444 | AT39: 2300 | AU39: 221.021444 | AW39: 0.2 | AX39: 0.3 | AY39: 0.5 | AZ39: 221.021444 | BB39: 0.2 | BC39: 0.3 | BD39: 0.5 | BE39: 2521.021444
B40: 0.3 | C40: =B40*Invoer!$E$9 -> 172.5 | D40: 0.3 | E40: =D40*Invoer!$E$9 -> 172.5 | F40: 0.4 | G40: =F40*Invoer!$E$9 -> 230 | I40: 0.3 | J40: =I40*Invoer!$E$15 -> 56.925 | K40: 0.3 | L40: =K40*Invoer!$E$15 -> 56.925 | M40: =K40*Invoer!$E$20 -> 31.30875 | N40: 0.4 | O40: =N40*Invoer!$E$9 -> 230 | Q40: 0.3 | R40: =IF(Invoer!$F$28,J40*Invoer!$F$28,J40*Invoer!$D$28) -> 1138.5 | S40: 0.3 | T40: =IF(Invoer!$F$29,M40*Invoer!$F$29,M40*Invoer!$D$29) -> 1878.525 | U40: 0.4 | V40: =IF(Invoer!$F$27,O40*Invoer!$F$27,O40*Invoer!$D$27) -> 1265 | X40: 0.3 | Y40: =Invoer!$D$34*Berekeningen!C40 -> 172.5 | Z40: =Berekeningen!C40*Invoer!$D$35 -> 345 | AA40: =IF(Invoer!$F$42,J40*Invoer!$F$42,J40*Invoer!$D$42) -> 35.86275 | AB40: 553.36275 | AC40: 0.3 | AD40: =Invoer!$D$34*E40 -> 172.5 | AE40: =E40*Invoer!$D$35 -> 345 | AF40: =L40*Invoer!$D$36 -> 224.85375 | AG40: =IF(Invoer!$F$43,Invoer!$F$43*M40,Invoer!$D$43*M40) -> 155.241306 | AH40: 897.595056 | AI40: 0.4 | AJ40: =Invoer!$D$34*Berekeningen!G40 -> 230 | AK40: =IF(Invoer!$F$41,Invoer!$F$41*G40,Invoer!$D$41*G40) -> 115 | AL40: 345 | AM40: 1795.957806 | AO40: 3162.5 | AQ40: 4282.025 | AR40: 1795.957806 | AS40: 2486.067194 | AT40: 2300 | AU40: 186.067194 | AW40: 0.3 | AX40: 0.3 | AY40: 0.4 | AZ40: 186.067194 | BB40: 0.3 | BC40: 0.3 | BD40: 0.4 | BE40: 2486.067194
B41: 0.4 | C41: =B41*Invoer!$E$9 -> 230 | D41: 0.3 | E41: =D41*Invoer!$E$9 -> 172.5 | F41: 0.3 | G41: =F41*Invoer!$E$9 -> 172.5 | I41: 0.4 | J41: =I41*Invoer!$E$15 -> 75.9 | K41: 0.3 | L41: =K41*Invoer!$E$15 -> 56.925 | M41: =K41*Invoer!$E$20 -> 31.30875 | N41: 0.3 | O41: =N41*Invoer!$E$9 -> 172.5 | Q41: 0.4 | R41: =IF(Invoer!$F$28,J41*Invoer!$F$28,J41*Invoer!$D$28) -> 1518 | S41: 0.3 | T41: =IF(Invoer!$F$29,M41*Invoer!$F$29,M41*Invoer!$D$29) -> 1878.525 | U41: 0.3 | V41: =IF(Invoer!$F$27,O41*Invoer!$F$27,O41*Invoer!$D$27) -> 948.75 | X41: 0.4 | Y41: =Invoer!$D$34*Berekeningen!C41 -> 230 | Z41: =Berekeningen!C41*Invoer!$D$35 -> 460 | AA41: =IF(Invoer!$F$42,J41*Invoer!$F$42,J41*Invoer!$D$42) -> 47.817 | AB41: 737.817 | AC41: 0.3 | AD41: =Invoer!$D$34*E41 -> 172.5 | AE41: =E41*Invoer!$D$35 -> 345 | AF41: =L41*Invoer!$D$36 -> 224.85375 | AG41: =IF(Invoer!$F$43,Invoer!$F$43*M41,Invoer!$D$43*M41) -> 155.241306 | AH41: 897.595056 | AI41: 0.3 | AJ41: =Invoer!$D$34*Berekeningen!G41 -> 172.5 | AK41: =IF(Invoer!$F$41,Invoer!$F$41*G41,Invoer!$D$41*G41) -> 86.25 | AL41: 258.75 | AM41: 1894.162056 | AO41: 3162.5 | AQ41: 4345.275 | AR41: 1894.162056 | AS41: 2451.112944 | AT41: 2300 | AU41: 151.112944 | AW41: 0.4 | AX41: 0.3 | AY41: 0.3 | AZ41: 151.112944 | BB41: 0.4 | BC41: 0.3 | BD41: 0.3 | BE41: 2451.112944
B42: 0.5 | C42: =B42*Invoer!$E$9 -> 287.5 | D42: 0.3 | E42: =D42*Invoer!$E$9 -> 172.5 | F42: 0.2 | G42: =F42*Invoer!$E$9 -> 115 | I42: 0.5 | J42: =I42*Invoer!$E$15 -> 94.875 | K42: 0.3 | L42: =K42*Invoer!$E$15 -> 56.925 | M42: =K42*Invoer!$E$20 -> 31.30875 | N42: 0.2 | O42: =N42*Invoer!$E$9 -> 115 | Q42: 0.5 | R42: =IF(Invoer!$F$28,J42*Invoer!$F$28,J42*Invoer!$D$28) -> 1897.5 | S42: 0.3 | T42: =IF(Invoer!$F$29,M42*Invoer!$F$29,M42*Invoer!$D$29) -> 1878.525 | U42: 0.2 | V42: =IF(Invoer!$F$27,O42*Invoer!$F$27,O42*Invoer!$D$27) -> 632.5 | X42: 0.5 | Y42: =Invoer!$D$34*Berekeningen!C42 -> 287.5 | Z42: =Berekeningen!C42*Invoer!$D$35 -> 575 | AA42: =IF(Invoer!$F$42,J42*Invoer!$F$42,J42*Invoer!$D$42) -> 59.77125 | AB42: 922.27125 | AC42: 0.3 | AD42: =Invoer!$D$34*E42 -> 172.5 | AE42: =E42*Invoer!$D$35 -> 345 | AF42: =L42*Invoer!$D$36 -> 224.85375 | AG42: =IF(Invoer!$F$43,Invoer!$F$43*M42,Invoer!$D$43*M42) -> 155.241306 | AH42: 897.595056 | AI42: 0.2 | AJ42: =Invoer!$D$34*Berekeningen!G42 -> 115 | AK42: =IF(Invoer!$F$41,Invoer!$F$41*G42,Invoer!$D$41*G42) -> 57.5 | AL42: 172.5 | AM42: 1992.366306 | AO42: 3162.5 | AQ42: 4408.525 | AR42: 1992.366306 | AS42: 2416.158694 | AT42: 2300 | AU42: 116.158694 | AW42: 0.5 | AX42: 0.3 | AY42: 0.2 | AZ42: 116.158694 | BB42: 0.5 | BC42: 0.3 | BD42: 0.2 | BE42: 2416.158694
B43: 0.6 | C43: =B43*Invoer!$E$9 -> 345 | D43: 0.3 | E43: =D43*Invoer!$E$9 -> 172.5 | F43: 0.1 | G43: =F43*Invoer!$E$9 -> 57.5 | I43: 0.6 | J43: =I43*Invoer!$E$15 -> 113.85 | K43: 0.3 | L43: =K43*Invoer!$E$15 -> 56.925 | M43: =K43*Invoer!$E$20 -> 31.30875 | N43: 0.1 | O43: =N43*Invoer!$E$9 -> 57.5 | Q43: 0.6 | R43: =IF(Invoer!$F$28,J43*Invoer!$F$28,J43*Invoer!$D$28) -> 2277 | S43: 0.3 | T43: =IF(Invoer!$F$29,M43*Invoer!$F$29,M43*Invoer!$D$29) -> 1878.525 | U43: 0.1 | V43: =IF(Invoer!$F$27,O43*Invoer!$F$27,O43*Invoer!$D$27) -> 316.25 | X43: 0.6 | Y43: =Invoer!$D$34*Berekeningen!C43 -> 345 | Z43: =Berekeningen!C43*Invoer!$D$35 -> 690 | AA43: =IF(Invoer!$F$42,J43*Invoer!$F$42,J43*Invoer!$D$42) -> 71.7255 | AB43: 1106.7255 | AC43: 0.3 | AD43: =Invoer!$D$34*E43 -> 172.5 | AE43: =E43*Invoer!$D$35 -> 345 | AF43: =L43*Invoer!$D$36 -> 224.85375 | AG43: =IF(Invoer!$F$43,Invoer!$F$43*M43,Invoer!$D$43*M43) -> 155.241306 | AH43: 897.595056 | AI43: 0.1 | AJ43: =Invoer!$D$34*Berekeningen!G43 -> 57.5 | AK43: =IF(Invoer!$F$41,Invoer!$F$41*G43,Invoer!$D$41*G43) -> 28.75 | AL43: 86.25 | AM43: 2090.570556 | AO43: 3162.5 | AQ43: 4471.775 | AR43: 2090.570556 | AS43: 2381.204444 | AT43: 2300 | AU43: 81.204444 | AW43: 0.6 | AX43: 0.3 | AY43: 0.1 | AZ43: 81.204444 | BB43: 0.6 | BC43: 0.3 | BD43: 0.1 | BE43: 2381.204444
B44: 0.7 | C44: =B44*Invoer!$E$9 -> 402.5 | D44: 0.3 | E44: =D44*Invoer!$E$9 -> 172.5 | F44: 0 | G44: =F44*Invoer!$E$9 -> 0 | I44: 0.7 | J44: =I44*Invoer!$E$15 -> 132.825 | K44: 0.3 | L44: =K44*Invoer!$E$15 -> 56.925 | M44: =K44*Invoer!$E$20 -> 31.30875 | N44: 0 | O44: =N44*Invoer!$E$9 -> 0 | Q44: 0.7 | R44: =IF(Invoer!$F$28,J44*Invoer!$F$28,J44*Invoer!$D$28) -> 2656.5 | S44: 0.3 | T44: =IF(Invoer!$F$29,M44*Invoer!$F$29,M44*Invoer!$D$29) -> 1878.525 | U44: 0 | V44: =IF(Invoer!$F$27,O44*Invoer!$F$27,O44*Invoer!$D$27) -> 0 | X44: 0.7 | Y44: =Invoer!$D$34*Berekeningen!C44 -> 402.5 | Z44: =Berekeningen!C44*Invoer!$D$35 -> 805 | AA44: =IF(Invoer!$F$42,J44*Invoer!$F$42,J44*Invoer!$D$42) -> 83.67975 | AB44: 1291.17975 | AC44: 0.3 | AD44: =Invoer!$D$34*E44 -> 172.5 | AE44: =E44*Invoer!$D$35 -> 345 | AF44: =L44*Invoer!$D$36 -> 224.85375 | AG44: =IF(Invoer!$F$43,Invoer!$F$43*M44,Invoer!$D$43*M44) -> 155.241306 | AH44: 897.595056 | AI44: 0 | AJ44: =Invoer!$D$34*Berekeningen!G44 -> 0 | AK44: =IF(Invoer!$F$41,Invoer!$F$41*G44,Invoer!$D$41*G44) -> 0 | AL44: 0 | AM44: 2188.774806 | AO44: 3162.5 | AQ44: 4535.025 | AR44: 2188.774806 | AS44: 2346.250194 | AT44: 2300 | AU44: 46.250194 | AW44: 0.7 | AX44: 0.3 | AY44: 0 | AZ44: 46.250194 | BB44: 0.7 | BC44: 0.3 | BD44: 0 | BE44: 2346.250194
B45: 0 | C45: =B45*Invoer!$E$9 -> 0 | D45: 0.4 | E45: =D45*Invoer!$E$9 -> 230 | F45: 0.6 | G45: =F45*Invoer!$E$9 -> 345 | I45: 0 | J45: =I45*Invoer!$E$15 -> 0 | K45: 0.4 | L45: =K45*Invoer!$E$15 -> 75.9 | M45: =K45*Invoer!$E$20 -> 41.745 | N45: 0.6 | O45: =N45*Invoer!$E$9 -> 345 | Q45: 0 | R45: =IF(Invoer!$F$28,J45*Invoer!$F$28,J45*Invoer!$D$28) -> 0 | S45: 0.4 | T45: =IF(Invoer!$F$29,M45*Invoer!$F$29,M45*Invoer!$D$29) -> 2504.7 | U45: 0.6 | V45: =IF(Invoer!$F$27,O45*Invoer!$F$27,O45*Invoer!$D$27) -> 1897.5 | X45: 0 | Y45: =Invoer!$D$34*Berekeningen!C45 -> 0 | Z45: =Berekeningen!C45*Invoer!$D$35 -> 0 | AA45: =IF(Invoer!$F$42,J45*Invoer!$F$42,J45*Invoer!$D$42) -> 0 | AB45: 0 | AC45: 0.4 | AD45: =Invoer!$D$34*E45 -> 230 | AE45: =E45*Invoer!$D$35 -> 460 | AF45: =L45*Invoer!$D$36 -> 299.805 | AG45: =IF(Invoer!$F$43,Invoer!$F$43*M45,Invoer!$D$43*M45) -> 206.988408 | AH45: 1196.793408 | AI45: 0.6 | AJ45: =Invoer!$D$34*Berekeningen!G45 -> 345 | AK45: =IF(Invoer!$F$41,Invoer!$F$41*G45,Invoer!$D$41*G45) -> 172.5 | AL45: 517.5 | AM45: 1714.293408 | AO45: 3162.5 | AQ45: 4402.2 | AR45: 1714.293408 | AS45: 2687.906592 | AT45: 2300 | AU45: 387.906592 | AW45: 0 | AX45: 0.4 | AY45: 0.6 | AZ45: 387.906592 | BB45: 0 | BC45: 0.4 | BD45: 0.6 | BE45: 2687.906592
B46: 0.1 | C46: =B46*Invoer!$E$9 -> 57.5 | D46: 0.4 | E46: =D46*Invoer!$E$9 -> 230 | F46: 0.5 | G46: =F46*Invoer!$E$9 -> 287.5 | I46: 0.1 | J46: =I46*Invoer!$E$15 -> 18.975 | K46: 0.4 | L46: =K46*Invoer!$E$15 -> 75.9 | M46: =K46*Invoer!$E$20 -> 41.745 | N46: 0.5 | O46: =N46*Invoer!$E$9 -> 287.5 | Q46: 0.1 | R46: =IF(Invoer!$F$28,J46*Invoer!$F$28,J46*Invoer!$D$28) -> 379.5 | S46: 0.4 | T46: =IF(Invoer!$F$29,M46*Invoer!$F$29,M46*Invoer!$D$29) -> 2504.7 | U46: 0.5 | V46: =IF(Invoer!$F$27,O46*Invoer!$F$27,O46*Invoer!$D$27) -> 1581.25 | X46: 0.1 | Y46: =Invoer!$D$34*Berekeningen!C46 -> 57.5 | Z46: =Berekeningen!C46*Invoer!$D$35 -> 115 | AA46: =IF(Invoer!$F$42,J46*Invoer!$F$42,J46*Invoer!$D$42) -> 11.95425 | AB46: 184.45425 | AC46: 0.4 | AD46: =Invoer!$D$34*E46 -> 230 | AE46: =E46*Invoer!$D$35 -> 460 | AF46: =L46*Invoer!$D$36 -> 299.805 | AG46: =IF(Invoer!$F$43,Invoer!$F$43*M46,Invoer!$D$43*M46) -> 206.988408 | AH46: 1196.793408 | AI46: 0.5 | AJ46: =Invoer!$D$34*Berekeningen!G46 -> 287.5 | AK46: =IF(Invoer!$F$41,Invoer!$F$41*G46,Invoer!$D$41*G46) -> 143.75 | AL46: 431.25 | AM46: 1812.497658 | AO46: 3162.5 | AQ46: 4465.45 | AR46: 1812.497658 | AS46: 2652.952342 | AT46: 2300 | AU46: 352.952342 | AW46: 0.1 | AX46: 0.4 | AY46: 0.5 | AZ46: 352.952342 | BB46: 0.1 | BC46: 0.4 | BD46: 0.5 | BE46: 2652.952342
B47: 0.2 | C47: =B47*Invoer!$E$9 -> 115 | D47: 0.4 | E47: =D47*Invoer!$E$9 -> 230 | F47: 0.4 | G47: =F47*Invoer!$E$9 -> 230 | I47: 0.2 | J47: =I47*Invoer!$E$15 -> 37.95 | K47: 0.4 | L47: =K47*Invoer!$E$15 -> 75.9 | M47: =K47*Invoer!$E$20 -> 41.745 | N47: 0.4 | O47: =N47*Invoer!$E$9 -> 230 | Q47: 0.2 | R47: =IF(Invoer!$F$28,J47*Invoer!$F$28,J47*Invoer!$D$28) -> 759 | S47: 0.4 | T47: =IF(Invoer!$F$29,M47*Invoer!$F$29,M47*Invoer!$D$29) -> 2504.7 | U47: 0.4 | V47: =IF(Invoer!$F$27,O47*Invoer!$F$27,O47*Invoer!$D$27) -> 1265 | X47: 0.2 | Y47: =Invoer!$D$34*Berekeningen!C47 -> 115 | Z47: =Berekeningen!C47*Invoer!$D$35 -> 230 | AA47: =IF(Invoer!$F$42,J47*Invoer!$F$42,J47*Invoer!$D$42) -> 23.9085 | AB47: 368.9085 | AC47: 0.4 | AD47: =Invoer!$D$34*E47 -> 230 | AE47: =E47*Invoer!$D$35 -> 460 | AF47: =L47*Invoer!$D$36 -> 299.805 | AG47: =IF(Invoer!$F$43,Invoer!$F$43*M47,Invoer!$D$43*M47) -> 206.988408 | AH47: 1196.793408 | AI47: 0.4 | AJ47: =Invoer!$D$34*Berekeningen!G47 -> 230 | AK47: =IF(Invoer!$F$41,Invoer!$F$41*G47,Invoer!$D$41*G47) -> 115 | AL47: 345 | AM47: 1910.701908 | AO47: 3162.5 | AQ47: 4528.7 | AR47: 1910.701908 | AS47: 2617.998092 | AT47: 2300 | AU47: 317.998092 | AW47: 0.2 | AX47: 0.4 | AY47: 0.4 | AZ47: 317.998092 | BB47: 0.2 | BC47: 0.4 | BD47: 0.4 | BE47: 2617.998092
B48: 0.3 | C48: =B48*Invoer!$E$9 -> 172.5 | D48: 0.4 | E48: =D48*Invoer!$E$9 -> 230 | F48: 0.3 | G48: =F48*Invoer!$E$9 -> 172.5 | I48: 0.3 | J48: =I48*Invoer!$E$15 -> 56.925 | K48: 0.4 | L48: =K48*Invoer!$E$15 -> 75.9 | M48: =K48*Invoer!$E$20 -> 41.745 | N48: 0.3 | O48: =N48*Invoer!$E$9 -> 172.5 | Q48: 0.3 | R48: =IF(Invoer!$F$28,J48*Invoer!$F$28,J48*Invoer!$D$28) -> 1138.5 | S48: 0.4 | T48: =IF(Invoer!$F$29,M48*Invoer!$F$29,M48*Invoer!$D$29) -> 2504.7 | U48: 0.3 | V48: =IF(Invoer!$F$27,O48*Invoer!$F$27,O48*Invoer!$D$27) -> 948.75 | X48: 0.3 | Y48: =Invoer!$D$34*Berekeningen!C48 -> 172.5 | Z48: =Berekeningen!C48*Invoer!$D$35 -> 345 | AA48: =IF(Invoer!$F$42,J48*Invoer!$F$42,J48*Invoer!$D$42) -> 35.86275 | AB48: 553.36275 | AC48: 0.4 | AD48: =Invoer!$D$34*E48 -> 230 | AE48: =E48*Invoer!$D$35 -> 460 | AF48: =L48*Invoer!$D$36 -> 299.805 | AG48: =IF(Invoer!$F$43,Invoer!$F$43*M48,Invoer!$D$43*M48) -> 206.988408 | AH48: 1196.793408 | AI48: 0.3 | AJ48: =Invoer!$D$34*Berekeningen!G48 -> 172.5 | AK48: =IF(Invoer!$F$41,Invoer!$F$41*G48,Invoer!$D$41*G48) -> 86.25 | AL48: 258.75 | AM48: 2008.906158 | AO48: 3162.5 | AQ48: 4591.95 | AR48: 2008.906158 | AS48: 2583.043842 | AT48: 2300 | AU48: 283.043842 | AW48: 0.3 | AX48: 0.4 | AY48: 0.3 | AZ48: 283.043842 | BB48: 0.3 | BC48: 0.4 | BD48: 0.3 | BE48: 2583.043842
B49: 0.4 | C49: =B49*Invoer!$E$9 -> 230 | D49: 0.4 | E49: =D49*Invoer!$E$9 -> 230 | F49: 0.2 | G49: =F49*Invoer!$E$9 -> 115 | I49: 0.4 | J49: =I49*Invoer!$E$15 -> 75.9 | K49: 0.4 | L49: =K49*Invoer!$E$15 -> 75.9 | M49: =K49*Invoer!$E$20 -> 41.745 | N49: 0.2 | O49: =N49*Invoer!$E$9 -> 115 | Q49: 0.4 | R49: =IF(Invoer!$F$28,J49*Invoer!$F$28,J49*Invoer!$D$28) -> 1518 | S49: 0.4 | T49: =IF(Invoer!$F$29,M49*Invoer!$F$29,M49*Invoer!$D$29) -> 2504.7 | U49: 0.2 | V49: =IF(Invoer!$F$27,O49*Invoer!$F$27,O49*Invoer!$D$27) -> 632.5 | X49: 0.4 | Y49: =Invoer!$D$34*Berekeningen!C49 -> 230 | Z49: =Berekeningen!C49*Invoer!$D$35 -> 460 | AA49: =IF(Invoer!$F$42,J49*Invoer!$F$42,J49*Invoer!$D$42) -> 47.817 | AB49: 737.817 | AC49: 0.4 | AD49: =Invoer!$D$34*E49 -> 230 | AE49: =E49*Invoer!$D$35 -> 460 | AF49: =L49*Invoer!$D$36 -> 299.805 | AG49: =IF(Invoer!$F$43,Invoer!$F$43*M49,Invoer!$D$43*M49) -> 206.988408 | AH49: 1196.793408 | AI49: 0.2 | AJ49: =Invoer!$D$34*Berekeningen!G49 -> 115 | AK49: =IF(Invoer!$F$41,Invoer!$F$41*G49,Invoer!$D$41*G49) -> 57.5 | AL49: 172.5 | AM49: 2107.110408 | AO49: 3162.5 | AQ49: 4655.2 | AR49: 2107.110408 | AS49: 2548.089592 | AT49: 2300 | AU49: 248.089592 | AW49: 0.4 | AX49: 0.4 | AY49: 0.2 | AZ49: 248.089592 | BB49: 0.4 | BC49: 0.4 | BD49: 0.2 | BE49: 2548.089592
B50: 0.5 | C50: =B50*Invoer!$E$9 -> 287.5 | D50: 0.4 | E50: =D50*Invoer!$E$9 -> 230 | F50: 0.1 | G50: =F50*Invoer!$E$9 -> 57.5 | I50: 0.5 | J50: =I50*Invoer!$E$15 -> 94.875 | K50: 0.4 | L50: =K50*Invoer!$E$15 -> 75.9 | M50: =K50*Invoer!$E$20 -> 41.745 | N50: 0.1 | O50: =N50*Invoer!$E$9 -> 57.5 | Q50: 0.5 | R50: =IF(Invoer!$F$28,J50*Invoer!$F$28,J50*Invoer!$D$28) -> 1897.5 | S50: 0.4 | T50: =IF(Invoer!$F$29,M50*Invoer!$F$29,M50*Invoer!$D$29) -> 2504.7 | U50: 0.1 | V50: =IF(Invoer!$F$27,O50*Invoer!$F$27,O50*Invoer!$D$27) -> 316.25 | X50: 0.5 | Y50: =Invoer!$D$34*Berekeningen!C50 -> 287.5 | Z50: =Berekeningen!C50*Invoer!$D$35 -> 575 | AA50: =IF(Invoer!$F$42,J50*Invoer!$F$42,J50*Invoer!$D$42) -> 59.77125 | AB50: 922.27125 | AC50: 0.4 | AD50: =Invoer!$D$34*E50 -> 230 | AE50: =E50*Invoer!$D$35 -> 460 | AF50: =L50*Invoer!$D$36 -> 299.805 | AG50: =IF(Invoer!$F$43,Invoer!$F$43*M50,Invoer!$D$43*M50) -> 206.988408 | AH50: 1196.793408 | AI50: 0.1 | AJ50: =Invoer!$D$34*Berekeningen!G50 -> 57.5 | AK50: =IF(Invoer!$F$41,Invoer!$F$41*G50,Invoer!$D$41*G50) -> 28.75 | AL50: 86.25 | AM50: 2205.314658 | AO50: 3162.5 | AQ50: 4718.45 | AR50: 2205.314658 | AS50: 2513.135342 | AT50: 2300 | AU50: 213.135342 | AW50: 0.5 | AX50: 0.4 | AY50: 0.1 | AZ50: 213.135342 | BB50: 0.5 | BC50: 0.4 | BD50: 0.1 | BE50: 2513.135342
B51: 0.6 | C51: =B51*Invoer!$E$9 -> 345 | D51: 0.4 | E51: =D51*Invoer!$E$9 -> 230 | F51: 0 | G51: =F51*Invoer!$E$9 -> 0 | I51: 0.6 | J51: =I51*Invoer!$E$15 -> 113.85 | K51: 0.4 | L51: =K51*Invoer!$E$15 -> 75.9 | M51: =K51*Invoer!$E$20 -> 41.745 | N51: 0 | O51: =N51*Invoer!$E$9 -> 0 | Q51: 0.6 | R51: =IF(Invoer!$F$28,J51*Invoer!$F$28,J51*Invoer!$D$28) -> 2277 | S51: 0.4 | T51: =IF(Invoer!$F$29,M51*Invoer!$F$29,M51*Invoer!$D$29) -> 2504.7 | U51: 0 | V51: =IF(Invoer!$F$27,O51*Invoer!$F$27,O51*Invoer!$D$27) -> 0 | X51: 0.6 | Y51: =Invoer!$D$34*Berekeningen!C51 -> 345 | Z51: =Berekeningen!C51*Invoer!$D$35 -> 690 | AA51: =IF(Invoer!$F$42,J51*Invoer!$F$42,J51*Invoer!$D$42) -> 71.7255 | AB51: 1106.7255 | AC51: 0.4 | AD51: =Invoer!$D$34*E51 -> 230 | AE51: =E51*Invoer!$D$35 -> 460 | AF51: =L51*Invoer!$D$36 -> 299.805 | AG51: =IF(Invoer!$F$43,Invoer!$F$43*M51,Invoer!$D$43*M51) -> 206.988408 | AH51: 1196.793408 | AI51: 0 | AJ51: =Invoer!$D$34*Berekeningen!G51 -> 0 | AK51: =IF(Invoer!$F$41,Invoer!$F$41*G51,Invoer!$D$41*G51) -> 0 | AL51: 0 | AM51: 2303.518908 | AO51: 3162.5 | AQ51: 4781.7 | AR51: 2303.518908 | AS51: 2478.181092 | AT51: 2300 | AU51: 178.181092 | AW51: 0.6 | AX51: 0.4 | AY51: 0 | AZ51: 178.181092 | BB51: 0.6 | BC51: 0.4 | BD51: 0 | BE51: 2478.181092
B52: 0 | C52: =B52*Invoer!$E$9 -> 0 | D52: 0.5 | E52: =D52*Invoer!$E$9 -> 287.5 | F52: 0.5 | G52: =F52*Invoer!$E$9 -> 287.5 | I52: 0 | J52: =I52*Invoer!$E$15 -> 0 | K52: 0.5 | L52: =K52*Invoer!$E$15 -> 94.875 | M52: =K52*Invoer!$E$20 -> 52.18125 | N52: 0.5 | O52: =N52*Invoer!$E$9 -> 287.5 | Q52: 0 | R52: =IF(Invoer!$F$28,J52*Invoer!$F$28,J52*Invoer!$D$28) -> 0 | S52: 0.5 | T52: =IF(Invoer!$F$29,M52*Invoer!$F$29,M52*Invoer!$D$29) -> 3130.875 | U52: 0.5 | V52: =IF(Invoer!$F$27,O52*Invoer!$F$27,O52*Invoer!$D$27) -> 1581.25 | X52: 0 | Y52: =Invoer!$D$34*Berekeningen!C52 -> 0 | Z52: =Berekeningen!C52*Invoer!$D$35 -> 0 | AA52: =IF(Invoer!$F$42,J52*Invoer!$F$42,J52*Invoer!$D$42) -> 0 | AB52: 0 | AC52: 0.5 | AD52: =Invoer!$D$34*E52 -> 287.5 | AE52: =E52*Invoer!$D$35 -> 575 | AF52: =L52*Invoer!$D$36 -> 374.75625 | AG52: =IF(Invoer!$F$43,Invoer!$F$43*M52,Invoer!$D$43*M52) -> 258.73551 | AH52: 1495.99176 | AI52: 0.5 | AJ52: =Invoer!$D$34*Berekeningen!G52 -> 287.5 | AK52: =IF(Invoer!$F$41,Invoer!$F$41*G52,Invoer!$D$41*G52) -> 143.75 | AL52: 431.25 | AM52: 1927.24176 | AO52: 3162.5 | AQ52: 4712.125 | AR52: 1927.24176 | AS52: 2784.88324 | AT52: 2300 | AU52: 484.88324 | AW52: 0 | AX52: 0.5 | AY52: 0.5 | AZ52: 484.88324 | BB52: 0 | BC52: 0.5 | BD52: 0.5 | BE52: 2784.88324
B53: 0.1 | C53: =B53*Invoer!$E$9 -> 57.5 | D53: 0.5 | E53: =D53*Invoer!$E$9 -> 287.5 | F53: 0.4 | G53: =F53*Invoer!$E$9 -> 230 | I53: 0.1 | J53: =I53*Invoer!$E$15 -> 18.975 | K53: 0.5 | L53: =K53*Invoer!$E$15 -> 94.875 | M53: =K53*Invoer!$E$20 -> 52.18125 | N53: 0.4 | O53: =N53*Invoer!$E$9 -> 230 | Q53: 0.1 | R53: =IF(Invoer!$F$28,J53*Invoer!$F$28,J53*Invoer!$D$28) -> 379.5 | S53: 0.5 | T53: =IF(Invoer!$F$29,M53*Invoer!$F$29,M53*Invoer!$D$29) -> 3130.875 | U53: 0.4 | V53: =IF(Invoer!$F$27,O53*Invoer!$F$27,O53*Invoer!$D$27) -> 1265 | X53: 0.1 | Y53: =Invoer!$D$34*Berekeningen!C53 -> 57.5 | Z53: =Berekeningen!C53*Invoer!$D$35 -> 115 | AA53: =IF(Invoer!$F$42,J53*Invoer!$F$42,J53*Invoer!$D$42) -> 11.95425 | AB53: 184.45425 | AC53: 0.5 | AD53: =Invoer!$D$34*E53 -> 287.5 | AE53: =E53*Invoer!$D$35 -> 575 | AF53: =L53*Invoer!$D$36 -> 374.75625 | AG53: =IF(Invoer!$F$43,Invoer!$F$43*M53,Invoer!$D$43*M53) -> 258.73551 | AH53: 1495.99176 | AI53: 0.4 | AJ53: =Invoer!$D$34*Berekeningen!G53 -> 230 | AK53: =IF(Invoer!$F$41,Invoer!$F$41*G53,Invoer!$D$41*G53) -> 115 | AL53: 345 | AM53: 2025.44601 | AO53: 3162.5 | AQ53: 4775.375 | AR53: 2025.44601 | AS53: 2749.92899 | AT53: 2300 | AU53: 449.92899 | AW53: 0.1 | AX53: 0.5 | AY53: 0.4 | AZ53: 449.92899 | BB53: 0.1 | BC53: 0.5 | BD53: 0.4 | BE53: 2749.92899
B54: 0.2 | C54: =B54*Invoer!$E$9 -> 115 | D54: 0.5 | E54: =D54*Invoer!$E$9 -> 287.5 | F54: 0.3 | G54: =F54*Invoer!$E$9 -> 172.5 | I54: 0.2 | J54: =I54*Invoer!$E$15 -> 37.95 | K54: 0.5 | L54: =K54*Invoer!$E$15 -> 94.875 | M54: =K54*Invoer!$E$20 -> 52.18125 | N54: 0.3 | O54: =N54*Invoer!$E$9 -> 172.5 | Q54: 0.2 | R54: =IF(Invoer!$F$28,J54*Invoer!$F$28,J54*Invoer!$D$28) -> 759 | S54: 0.5 | T54: =IF(Invoer!$F$29,M54*Invoer!$F$29,M54*Invoer!$D$29) -> 3130.875 | U54: 0.3 | V54: =IF(Invoer!$F$27,O54*Invoer!$F$27,O54*Invoer!$D$27) -> 948.75 | X54: 0.2 | Y54: =Invoer!$D$34*Berekeningen!C54 -> 115 | Z54: =Berekeningen!C54*Invoer!$D$35 -> 230 | AA54: =IF(Invoer!$F$42,J54*Invoer!$F$42,J54*Invoer!$D$42) -> 23.9085 | AB54: 368.9085 | AC54: 0.5 | AD54: =Invoer!$D$34*E54 -> 287.5 | AE54: =E54*Invoer!$D$35 -> 575 | AF54: =L54*Invoer!$D$36 -> 374.75625 | AG54: =IF(Invoer!$F$43,Invoer!$F$43*M54,Invoer!$D$43*M54) -> 258.73551 | AH54: 1495.99176 | AI54: 0.3 | AJ54: =Invoer!$D$34*Berekeningen!G54 -> 172.5 | AK54: =IF(Invoer!$F$41,Invoer!$F$41*G54,Invoer!$D$41*G54) -> 86.25 | AL54: 258.75 | AM54: 2123.65026 | AO54: 3162.5 | AQ54: 4838.625 | AR54: 2123.65026 | AS54: 2714.97474 | AT54: 2300 | AU54: 414.97474 | AW54: 0.2 | AX54: 0.5 | AY54: 0.3 | AZ54: 414.97474 | BB54: 0.2 | BC54: 0.5 | BD54: 0.3 | BE54: 2714.97474
B55: 0.3 | C55: =B55*Invoer!$E$9 -> 172.5 | D55: 0.5 | E55: =D55*Invoer!$E$9 -> 287.5 | F55: 0.2 | G55: =F55*Invoer!$E$9 -> 115 | I55: 0.3 | J55: =I55*Invoer!$E$15 -> 56.925 | K55: 0.5 | L55: =K55*Invoer!$E$15 -> 94.875 | M55: =K55*Invoer!$E$20 -> 52.18125 | N55: 0.2 | O55: =N55*Invoer!$E$9 -> 115 | Q55: 0.3 | R55: =IF(Invoer!$F$28,J55*Invoer!$F$28,J55*Invoer!$D$28) -> 1138.5 | S55: 0.5 | T55: =IF(Invoer!$F$29,M55*Invoer!$F$29,M55*Invoer!$D$29) -> 3130.875 | U55: 0.2 | V55: =IF(Invoer!$F$27,O55*Invoer!$F$27,O55*Invoer!$D$27) -> 632.5 | X55: 0.3 | Y55: =Invoer!$D$34*Berekeningen!C55 -> 172.5 | Z55: =Berekeningen!C55*Invoer!$D$35 -> 345 | AA55: =IF(Invoer!$F$42,J55*Invoer!$F$42,J55*Invoer!$D$42) -> 35.86275 | AB55: 553.36275 | AC55: 0.5 | AD55: =Invoer!$D$34*E55 -> 287.5 | AE55: =E55*Invoer!$D$35 -> 575 | AF55: =L55*Invoer!$D$36 -> 374.75625 | AG55: =IF(Invoer!$F$43,Invoer!$F$43*M55,Invoer!$D$43*M55) -> 258.73551 | AH55: 1495.99176 | AI55: 0.2 | AJ55: =Invoer!$D$34*Berekeningen!G55 -> 115 | AK55: =IF(Invoer!$F$41,Invoer!$F$41*G55,Invoer!$D$41*G55) -> 57.5 | AL55: 172.5 | AM55: 2221.85451 | AO55: 3162.5 | AQ55: 4901.875 | AR55: 2221.85451 | AS55: 2680.02049 | AT55: 2300 | AU55: 380.02049 | AW55: 0.3 | AX55: 0.5 | AY55: 0.2 | AZ55: 380.02049 | BB55: 0.3 | BC55: 0.5 | BD55: 0.2 | BE55: 2680.02049
B56: 0.4 | C56: =B56*Invoer!$E$9 -> 230 | D56: 0.5 | E56: =D56*Invoer!$E$9 -> 287.5 | F56: 0.1 | G56: =F56*Invoer!$E$9 -> 57.5 | I56: 0.4 | J56: =I56*Invoer!$E$15 -> 75.9 | K56: 0.5 | L56: =K56*Invoer!$E$15 -> 94.875 | M56: =K56*Invoer!$E$20 -> 52.18125 | N56: 0.1 | O56: =N56*Invoer!$E$9 -> 57.5 | Q56: 0.4 | R56: =IF(Invoer!$F$28,J56*Invoer!$F$28,J56*Invoer!$D$28) -> 1518 | S56: 0.5 | T56: =IF(Invoer!$F$29,M56*Invoer!$F$29,M56*Invoer!$D$29) -> 3130.875 | U56: 0.1 | V56: =IF(Invoer!$F$27,O56*Invoer!$F$27,O56*Invoer!$D$27) -> 316.25 | X56: 0.4 | Y56: =Invoer!$D$34*Berekeningen!C56 -> 230 | Z56: =Berekeningen!C56*Invoer!$D$35 -> 460 | AA56: =IF(Invoer!$F$42,J56*Invoer!$F$42,J56*Invoer!$D$42) -> 47.817 | AB56: 737.817 | AC56: 0.5 | AD56: =Invoer!$D$34*E56 -> 287.5 | AE56: =E56*Invoer!$D$35 -> 575 | AF56: =L56*Invoer!$D$36 -> 374.75625 | AG56: =IF(Invoer!$F$43,Invoer!$F$43*M56,Invoer!$D$43*M56) -> 258.73551 | AH56: 1495.99176 | AI56: 0.1 | AJ56: =Invoer!$D$34*Berekeningen!G56 -> 57.5 | AK56: =IF(Invoer!$F$41,Invoer!$F$41*G56,Invoer!$D$41*G56) -> 28.75 | AL56: 86.25 | AM56: 2320.05876 | AO56: 3162.5 | AQ56: 4965.125 | AR56: 2320.05876 | AS56: 2645.06624 | AT56: 2300 | AU56: 345.06624 | AW56: 0.4 | AX56: 0.5 | AY56: 0.1 | AZ56: 345.06624 | BB56: 0.4 | BC56: 0.5 | BD56: 0.1 | BE56: 2645.06624
B57: 0.5 | C57: =B57*Invoer!$E$9 -> 287.5 | D57: 0.5 | E57: =D57*Invoer!$E$9 -> 287.5 | F57: 0 | G57: =F57*Invoer!$E$9 -> 0 | I57: 0.5 | J57: =I57*Invoer!$E$15 -> 94.875 | K57: 0.5 | L57: =K57*Invoer!$E$15 -> 94.875 | M57: =K57*Invoer!$E$20 -> 52.18125 | N57: 0 | O57: =N57*Invoer!$E$9 -> 0 | Q57: 0.5 | R57: =IF(Invoer!$F$28,J57*Invoer!$F$28,J57*Invoer!$D$28) -> 1897.5 | S57: 0.5 | T57: =IF(Invoer!$F$29,M57*Invoer!$F$29,M57*Invoer!$D$29) -> 3130.875 | U57: 0 | V57: =IF(Invoer!$F$27,O57*Invoer!$F$27,O57*Invoer!$D$27) -> 0 | X57: 0.5 | Y57: =Invoer!$D$34*Berekeningen!C57 -> 287.5 | Z57: =Berekeningen!C57*Invoer!$D$35 -> 575 | AA57: =IF(Invoer!$F$42,J57*Invoer!$F$42,J57*Invoer!$D$42) -> 59.77125 | AB57: 922.27125 | AC57: 0.5 | AD57: =Invoer!$D$34*E57 -> 287.5 | AE57: =E57*Invoer!$D$35 -> 575 | AF57: =L57*Invoer!$D$36 -> 374.75625 | AG57: =IF(Invoer!$F$43,Invoer!$F$43*M57,Invoer!$D$43*M57) -> 258.73551 | AH57: 1495.99176 | AI57: 0 | AJ57: =Invoer!$D$34*Berekeningen!G57 -> 0 | AK57: =IF(Invoer!$F$41,Invoer!$F$41*G57,Invoer!$D$41*G57) -> 0 | AL57: 0 | AM57: 2418.26301 | AO57: 3162.5 | AQ57: 5028.375 | AR57: 2418.26301 | AS57: 2610.11199 | AT57: 2300 | AU57: 310.11199 | AW57: 0.5 | AX57: 0.5 | AY57: 0 | AZ57: 310.11199 | BB57: 0.5 | BC57: 0.5 | BD57: 0 | BE57: 2610.11199
B58: 0 | C58: =B58*Invoer!$E$9 -> 0 | D58: 0.6 | E58: =D58*Invoer!$E$9 -> 345 | F58: =100%-D58-B58 -> 0.4 | G58: =F58*Invoer!$E$9 -> 230 | I58: 0 | J58: =I58*Invoer!$E$15 -> 0 | K58: 0.6 | L58: =K58*Invoer!$E$15 -> 113.85 | M58: =K58*Invoer!$E$20 -> 62.6175 | N58: =100%-K58-I58 -> 0.4 | O58: =N58*Invoer!$E$9 -> 230 | Q58: 0 | R58: =IF(Invoer!$F$28,J58*Invoer!$F$28,J58*Invoer!$D$28) -> 0 | S58: 0.6 | T58: =IF(Invoer!$F$29,M58*Invoer!$F$29,M58*Invoer!$D$29) -> 3757.05 | U58: =100%-S58-Q58 -> 0.4 | V58: =IF(Invoer!$F$27,O58*Invoer!$F$27,O58*Invoer!$D$27) -> 1265 | X58: 0 | Y58: =Invoer!$D$34*Berekeningen!C58 -> 0 | Z58: =Berekeningen!C58*Invoer!$D$35 -> 0 | AA58: =IF(Invoer!$F$42,J58*Invoer!$F$42,J58*Invoer!$D$42) -> 0 | AB58: 0 | AC58: 0.6 | AD58: =Invoer!$D$34*E58 -> 345 | AE58: =E58*Invoer!$D$35 -> 690 | AF58: =L58*Invoer!$D$36 -> 449.7075 | AG58: =IF(Invoer!$F$43,Invoer!$F$43*M58,Invoer!$D$43*M58) -> 310.482612 | AH58: 1795.190112 | AI58: 0.4 | AJ58: =Invoer!$D$34*Berekeningen!G58 -> 230 | AK58: =IF(Invoer!$F$41,Invoer!$F$41*G58,Invoer!$D$41*G58) -> 115 | AL58: 345 | AM58: 2140.190112 | AO58: =$V$7 -> 3162.5 | AQ58: 5022.05 | AR58: =AM58 -> 2140.190112 | AS58: 2881.859888 | AT58: 2300 | AU58: =AS58-AT58 -> 581.859888 | AW58: 0 | AX58: 0.6 | AY58: =100%-AX58-AW58 -> 0.4 | AZ58: =AU58 -> 581.859888 | BB58: 0 | BC58: 0.6 | BD58: =100%-BC58-BB58 -> 0.4 | BE58: =AS58 -> 2881.859888
B59: 0.1 | C59: =B59*Invoer!$E$9 -> 57.5 | D59: 0.6 | E59: =D59*Invoer!$E$9 -> 345 | F59: 0.3 | G59: =F59*Invoer!$E$9 -> 172.5 | I59: 0.1 | J59: =I59*Invoer!$E$15 -> 18.975 | K59: 0.6 | L59: =K59*Invoer!$E$15 -> 113.85 | M59: =K59*Invoer!$E$20 -> 62.6175 | N59: 0.3 | O59: =N59*Invoer!$E$9 -> 172.5 | Q59: 0.1 | R59: =IF(Invoer!$F$28,J59*Invoer!$F$28,J59*Invoer!$D$28) -> 379.5 | S59: 0.6 | T59: =IF(Invoer!$F$29,M59*Invoer!$F$29,M59*Invoer!$D$29) -> 3757.05 | U59: 0.3 | V59: =IF(Invoer!$F$27,O59*Invoer!$F$27,O59*Invoer!$D$27) -> 948.75 | X59: 0.1 | Y59: =Invoer!$D$34*Berekeningen!C59 -> 57.5 | Z59: =Berekeningen!C59*Invoer!$D$35 -> 115 | AA59: =IF(Invoer!$F$42,J59*Invoer!$F$42,J59*Invoer!$D$42) -> 11.95425 | AB59: 184.45425 | AC59: 0.6 | AD59: =Invoer!$D$34*E59 -> 345 | AE59: =E59*Invoer!$D$35 -> 690 | AF59: =L59*Invoer!$D$36 -> 449.7075 | AG59: =IF(Invoer!$F$43,Invoer!$F$43*M59,Invoer!$D$43*M59) -> 310.482612 | AH59: 1795.190112 | AI59: 0.3 | AJ59: =Invoer!$D$34*Berekeningen!G59 -> 172.5 | AK59: =IF(Invoer!$F$41,Invoer!$F$41*G59,Invoer!$D$41*G59) -> 86.25 | AL59: 258.75 | AM59: 2238.394362 | AO59: 3162.5 | AQ59: 5085.3 | AR59: 2238.394362 | AS59: =AQ59-AR59 -> 2846.905638 | AT59: 2300 | AU59: 546.905638 | AW59: 0.1 | AX59: 0.6 | AY59: 0.3 | AZ59: 546.905638 | BB59: 0.1 | BC59: 0.6 | BD59: 0.3 | BE59: 2846.905638
B60: 0.2 | C60: =B60*Invoer!$E$9 -> 115 | D60: 0.6 | E60: =D60*Invoer!$E$9 -> 345 | F60: 0.2 | G60: =F60*Invoer!$E$9 -> 115 | I60: 0.2 | J60: =I60*Invoer!$E$15 -> 37.95 | K60: 0.6 | L60: =K60*Invoer!$E$15 -> 113.85 | M60: =K60*Invoer!$E$20 -> 62.6175 | N60: 0.2 | O60: =N60*Invoer!$E$9 -> 115 | Q60: 0.2 | R60: =IF(Invoer!$F$28,J60*Invoer!$F$28,J60*Invoer!$D$28) -> 759 | S60: 0.6 | T60: =IF(Invoer!$F$29,M60*Invoer!$F$29,M60*Invoer!$D$29) -> 3757.05 | U60: 0.2 | V60: =IF(Invoer!$F$27,O60*Invoer!$F$27,O60*Invoer!$D$27) -> 632.5 | X60: 0.2 | Y60: =Invoer!$D$34*Berekeningen!C60 -> 115 | Z60: =Berekeningen!C60*Invoer!$D$35 -> 230 | AA60: =IF(Invoer!$F$42,J60*Invoer!$F$42,J60*Invoer!$D$42) -> 23.9085 | AB60: 368.9085 | AC60: 0.6 | AD60: =Invoer!$D$34*E60 -> 345 | AE60: =E60*Invoer!$D$35 -> 690 | AF60: =L60*Invoer!$D$36 -> 449.7075 | AG60: =IF(Invoer!$F$43,Invoer!$F$43*M60,Invoer!$D$43*M60) -> 310.482612 | AH60: 1795.190112 | AI60: 0.2 | AJ60: =Invoer!$D$34*Berekeningen!G60 -> 115 | AK60: =IF(Invoer!$F$41,Invoer!$F$41*G60,Invoer!$D$41*G60) -> 57.5 | AL60: 172.5 | AM60: 2336.598612 | AO60: 3162.5 | AQ60: 5148.55 | AR60: 2336.598612 | AS60: 2811.951388 | AT60: 2300 | AU60: 511.951388 | AW60: 0.2 | AX60: 0.6 | AY60: 0.2 | AZ60: 511.951388 | BB60: 0.2 | BC60: 0.6 | BD60: 0.2 | BE60: 2811.951388
B61: 0.3 | C61: =B61*Invoer!$E$9 -> 172.5 | D61: 0.6 | E61: =D61*Invoer!$E$9 -> 345 | F61: 0.1 | G61: =F61*Invoer!$E$9 -> 57.5 | I61: 0.3 | J61: =I61*Invoer!$E$15 -> 56.925 | K61: 0.6 | L61: =K61*Invoer!$E$15 -> 113.85 | M61: =K61*Invoer!$E$20 -> 62.6175 | N61: 0.1 | O61: =N61*Invoer!$E$9 -> 57.5 | Q61: 0.3 | R61: =IF(Invoer!$F$28,J61*Invoer!$F$28,J61*Invoer!$D$28) -> 1138.5 | S61: 0.6 | T61: =IF(Invoer!$F$29,M61*Invoer!$F$29,M61*Invoer!$D$29) -> 3757.05 | U61: 0.1 | V61: =IF(Invoer!$F$27,O61*Invoer!$F$27,O61*Invoer!$D$27) -> 316.25 | X61: 0.3 | Y61: =Invoer!$D$34*Berekeningen!C61 -> 172.5 | Z61: =Berekeningen!C61*Invoer!$D$35 -> 345 | AA61: =IF(Invoer!$F$42,J61*Invoer!$F$42,J61*Invoer!$D$42) -> 35.86275 | AB61: 553.36275 | AC61: 0.6 | AD61: =Invoer!$D$34*E61 -> 345 | AE61: =E61*Invoer!$D$35 -> 690 | AF61: =L61*Invoer!$D$36 -> 449.7075 | AG61: =IF(Invoer!$F$43,Invoer!$F$43*M61,Invoer!$D$43*M61) -> 310.482612 | AH61: 1795.190112 | AI61: 0.1 | AJ61: =Invoer!$D$34*Berekeningen!G61 -> 57.5 | AK61: =IF(Invoer!$F$41,Invoer!$F$41*G61,Invoer!$D$41*G61) -> 28.75 | AL61: 86.25 | AM61: 2434.802862 | AO61: 3162.5 | AQ61: 5211.8 | AR61: 2434.802862 | AS61: 2776.997138 | AT61: 2300 | AU61: 476.997138 | AW61: 0.3 | AX61: 0.6 | AY61: 0.1 | AZ61: 476.997138 | BB61: 0.3 | BC61: 0.6 | BD61: 0.1 | BE61: 2776.997138
B62: 0.4 | C62: =B62*Invoer!$E$9 -> 230 | D62: 0.6 | E62: =D62*Invoer!$E$9 -> 345 | F62: 0 | G62: =F62*Invoer!$E$9 -> 0 | I62: 0.4 | J62: =I62*Invoer!$E$15 -> 75.9 | K62: 0.6 | L62: =K62*Invoer!$E$15 -> 113.85 | M62: =K62*Invoer!$E$20 -> 62.6175 | N62: 0 | O62: =N62*Invoer!$E$9 -> 0 | Q62: 0.4 | R62: =IF(Invoer!$F$28,J62*Invoer!$F$28,J62*Invoer!$D$28) -> 1518 | S62: 0.6 | T62: =IF(Invoer!$F$29,M62*Invoer!$F$29,M62*Invoer!$D$29) -> 3757.05 | U62: 0 | V62: =IF(Invoer!$F$27,O62*Invoer!$F$27,O62*Invoer!$D$27) -> 0 | X62: 0.4 | Y62: =Invoer!$D$34*Berekeningen!C62 -> 230 | Z62: =Berekeningen!C62*Invoer!$D$35 -> 460 | AA62: =IF(Invoer!$F$42,J62*Invoer!$F$42,J62*Invoer!$D$42) -> 47.817 | AB62: 737.817 | AC62: 0.6 | AD62: =Invoer!$D$34*E62 -> 345 | AE62: =E62*Invoer!$D$35 -> 690 | AF62: =L62*Invoer!$D$36 -> 449.7075 | AG62: =IF(Invoer!$F$43,Invoer!$F$43*M62,Invoer!$D$43*M62) -> 310.482612 | AH62: 1795.190112 | AI62: 0 | AJ62: =Invoer!$D$34*Berekeningen!G62 -> 0 | AK62: =IF(Invoer!$F$41,Invoer!$F$41*G62,Invoer!$D$41*G62) -> 0 | AL62: 0 | AM62: 2533.007112 | AO62: 3162.5 | AQ62: 5275.05 | AR62: 2533.007112 | AS62: 2742.042888 | AT62: 2300 | AU62: 442.042888 | AW62: 0.4 | AX62: 0.6 | AY62: 0 | AZ62: 442.042888 | BB62: 0.4 | BC62: 0.6 | BD62: 0 | BE62: 2742.042888
B63: 0 | C63: =B63*Invoer!$E$9 -> 0 | D63: 0.7 | E63: =D63*Invoer!$E$9 -> 402.5 | F63: 0.3 | G63: =F63*Invoer!$E$9 -> 172.5 | I63: 0 | J63: =I63*Invoer!$E$15 -> 0 | K63: 0.7 | L63: =K63*Invoer!$E$15 -> 132.825 | M63: =K63*Invoer!$E$20 -> 73.05375 | N63: 0.3 | O63: =N63*Invoer!$E$9 -> 172.5 | Q63: 0 | R63: =IF(Invoer!$F$28,J63*Invoer!$F$28,J63*Invoer!$D$28) -> 0 | S63: 0.7 | T63: =IF(Invoer!$F$29,M63*Invoer!$F$29,M63*Invoer!$D$29) -> 4383.225 | U63: 0.3 | V63: =IF(Invoer!$F$27,O63*Invoer!$F$27,O63*Invoer!$D$27) -> 948.75 | X63: 0 | Y63: =Invoer!$D$34*Berekeningen!C63 -> 0 | Z63: =Berekeningen!C63*Invoer!$D$35 -> 0 | AA63: =IF(Invoer!$F$42,J63*Invoer!$F$42,J63*Invoer!$D$42) -> 0 | AB63: 0 | AC63: 0.7 | AD63: =Invoer!$D$34*E63 -> 402.5 | AE63: =E63*Invoer!$D$35 -> 805 | AF63: =L63*Invoer!$D$36 -> 524.65875 | AG63: =IF(Invoer!$F$43,Invoer!$F$43*M63,Invoer!$D$43*M63) -> 362.229714 | AH63: 2094.388464 | AI63: 0.3 | AJ63: =Invoer!$D$34*Berekeningen!G63 -> 172.5 | AK63: =IF(Invoer!$F$41,Invoer!$F$41*G63,Invoer!$D$41*G63) -> 86.25 | AL63: 258.75 | AM63: 2353.138464 | AO63: 3162.5 | AQ63: 5331.975 | AR63: 2353.138464 | AS63: 2978.836536 | AT63: 2300 | AU63: 678.836536 | AW63: 0 | AX63: 0.7 | AY63: 0.3 | AZ63: 678.836536 | BB63: 0 | BC63: 0.7 | BD63: 0.3 | BE63: 2978.836536
B64: 0.1 | C64: =B64*Invoer!$E$9 -> 57.5 | D64: 0.7 | E64: =D64*Invoer!$E$9 -> 402.5 | F64: 0.2 | G64: =F64*Invoer!$E$9 -> 115 | I64: 0.1 | J64: =I64*Invoer!$E$15 -> 18.975 | K64: 0.7 | L64: =K64*Invoer!$E$15 -> 132.825 | M64: =K64*Invoer!$E$20 -> 73.05375 | N64: 0.2 | O64: =N64*Invoer!$E$9 -> 115 | Q64: 0.1 | R64: =IF(Invoer!$F$28,J64*Invoer!$F$28,J64*Invoer!$D$28) -> 379.5 | S64: 0.7 | T64: =IF(Invoer!$F$29,M64*Invoer!$F$29,M64*Invoer!$D$29) -> 4383.225 | U64: 0.2 | V64: =IF(Invoer!$F$27,O64*Invoer!$F$27,O64*Invoer!$D$27) -> 632.5 | X64: 0.1 | Y64: =Invoer!$D$34*Berekeningen!C64 -> 57.5 | Z64: =Berekeningen!C64*Invoer!$D$35 -> 115 | AA64: =IF(Invoer!$F$42,J64*Invoer!$F$42,J64*Invoer!$D$42) -> 11.95425 | AB64: 184.45425 | AC64: 0.7 | AD64: =Invoer!$D$34*E64 -> 402.5 | AE64: =E64*Invoer!$D$35 -> 805 | AF64: =L64*Invoer!$D$36 -> 524.65875 | AG64: =IF(Invoer!$F$43,Invoer!$F$43*M64,Invoer!$D$43*M64) -> 362.229714 | AH64: 2094.388464 | AI64: 0.2 | AJ64: =Invoer!$D$34*Berekeningen!G64 -> 115 | AK64: =IF(Invoer!$F$41,Invoer!$F$41*G64,Invoer!$D$41*G64) -> 57.5 | AL64: 172.5 | AM64: 2451.342714 | AO64: 3162.5 | AQ64: 5395.225 | AR64: 2451.342714 | AS64: 2943.882286 | AT64: 2300 | AU64: 643.882286 | AW64: 0.1 | AX64: 0.7 | AY64: 0.2 | AZ64: 643.882286 | BB64: 0.1 | BC64: 0.7 | BD64: 0.2 | BE64: 2943.882286
B65: 0.2 | C65: =B65*Invoer!$E$9 -> 115 | D65: 0.7 | E65: =D65*Invoer!$E$9 -> 402.5 | F65: 0.1 | G65: =F65*Invoer!$E$9 -> 57.5 | I65: 0.2 | J65: =I65*Invoer!$E$15 -> 37.95 | K65: 0.7 | L65: =K65*Invoer!$E$15 -> 132.825 | M65: =K65*Invoer!$E$20 -> 73.05375 | N65: 0.1 | O65: =N65*Invoer!$E$9 -> 57.5 | Q65: 0.2 | R65: =IF(Invoer!$F$28,J65*Invoer!$F$28,J65*Invoer!$D$28) -> 759 | S65: 0.7 | T65: =IF(Invoer!$F$29,M65*Invoer!$F$29,M65*Invoer!$D$29) -> 4383.225 | U65: 0.1 | V65: =IF(Invoer!$F$27,O65*Invoer!$F$27,O65*Invoer!$D$27) -> 316.25 | X65: 0.2 | Y65: =Invoer!$D$34*Berekeningen!C65 -> 115 | Z65: =Berekeningen!C65*Invoer!$D$35 -> 230 | AA65: =IF(Invoer!$F$42,J65*Invoer!$F$42,J65*Invoer!$D$42) -> 23.9085 | AB65: 368.9085 | AC65: 0.7 | AD65: =Invoer!$D$34*E65 -> 402.5 | AE65: =E65*Invoer!$D$35 -> 805 | AF65: =L65*Invoer!$D$36 -> 524.65875 | AG65: =IF(Invoer!$F$43,Invoer!$F$43*M65,Invoer!$D$43*M65) -> 362.229714 | AH65: 2094.388464 | AI65: 0.1 | AJ65: =Invoer!$D$34*Berekeningen!G65 -> 57.5 | AK65: =IF(Invoer!$F$41,Invoer!$F$41*G65,Invoer!$D$41*G65) -> 28.75 | AL65: 86.25 | AM65: 2549.546964 | AO65: 3162.5 | AQ65: 5458.475 | AR65: 2549.546964 | AS65: 2908.928036 | AT65: 2300 | AU65: 608.928036 | AW65: 0.2 | AX65: 0.7 | AY65: 0.1 | AZ65: 608.928036 | BB65: 0.2 | BC65: 0.7 | BD65: 0.1 | BE65: 2908.928036
B66: 0.3 | C66: =B66*Invoer!$E$9 -> 172.5 | D66: 0.7 | E66: =D66*Invoer!$E$9 -> 402.5 | F66: 0 | G66: =F66*Invoer!$E$9 -> 0 | I66: 0.3 | J66: =I66*Invoer!$E$15 -> 56.925 | K66: 0.7 | L66: =K66*Invoer!$E$15 -> 132.825 | M66: =K66*Invoer!$E$20 -> 73.05375 | N66: 0 | O66: =N66*Invoer!$E$9 -> 0 | Q66: 0.3 | R66: =IF(Invoer!$F$28,J66*Invoer!$F$28,J66*Invoer!$D$28) -> 1138.5 | S66: 0.7 | T66: =IF(Invoer!$F$29,M66*Invoer!$F$29,M66*Invoer!$D$29) -> 4383.225 | U66: 0 | V66: =IF(Invoer!$F$27,O66*Invoer!$F$27,O66*Invoer!$D$27) -> 0 | X66: 0.3 | Y66: =Invoer!$D$34*Berekeningen!C66 -> 172.5 | Z66: =Berekeningen!C66*Invoer!$D$35 -> 345 | AA66: =IF(Invoer!$F$42,J66*Invoer!$F$42,J66*Invoer!$D$42) -> 35.86275 | AB66: 553.36275 | AC66: 0.7 | AD66: =Invoer!$D$34*E66 -> 402.5 | AE66: =E66*Invoer!$D$35 -> 805 | AF66: =L66*Invoer!$D$36 -> 524.65875 | AG66: =IF(Invoer!$F$43,Invoer!$F$43*M66,Invoer!$D$43*M66) -> 362.229714 | AH66: 2094.388464 | AI66: 0 | AJ66: =Invoer!$D$34*Berekeningen!G66 -> 0 | AK66: =IF(Invoer!$F$41,Invoer!$F$41*G66,Invoer!$D$41*G66) -> 0 | AL66: 0 | AM66: 2647.751214 | AO66: 3162.5 | AQ66: 5521.725 | AR66: 2647.751214 | AS66: 2873.973786 | AT66: 2300 | AU66: 573.973786 | AW66: 0.3 | AX66: 0.7 | AY66: 0 | AZ66: 573.973786 | BB66: 0.3 | BC66: 0.7 | BD66: 0 | BE66: 2873.973786
B67: 0 | C67: =B67*Invoer!$E$9 -> 0 | D67: 0.8 | E67: =D67*Invoer!$E$9 -> 460 | F67: 0.2 | G67: =F67*Invoer!$E$9 -> 115 | I67: 0 | J67: =I67*Invoer!$E$15 -> 0 | K67: 0.8 | L67: =K67*Invoer!$E$15 -> 151.8 | M67: =K67*Invoer!$E$20 -> 83.49 | N67: 0.2 | O67: =N67*Invoer!$E$9 -> 115 | Q67: 0 | R67: =IF(Invoer!$F$28,J67*Invoer!$F$28,J67*Invoer!$D$28) -> 0 | S67: 0.8 | T67: =IF(Invoer!$F$29,M67*Invoer!$F$29,M67*Invoer!$D$29) -> 5009.4 | U67: 0.2 | V67: =IF(Invoer!$F$27,O67*Invoer!$F$27,O67*Invoer!$D$27) -> 632.5 | X67: 0 | Y67: =Invoer!$D$34*Berekeningen!C67 -> 0 | Z67: =Berekeningen!C67*Invoer!$D$35 -> 0 | AA67: =IF(Invoer!$F$42,J67*Invoer!$F$42,J67*Invoer!$D$42) -> 0 | AB67: 0 | AC67: 0.8 | AD67: =Invoer!$D$34*E67 -> 460 | AE67: =E67*Invoer!$D$35 -> 920 | AF67: =L67*Invoer!$D$36 -> 599.61 | AG67: =IF(Invoer!$F$43,Invoer!$F$43*M67,Invoer!$D$43*M67) -> 413.976816 | AH67: 2393.586816 | AI67: 0.2 | AJ67: =Invoer!$D$34*Berekeningen!G67 -> 115 | AK67: =IF(Invoer!$F$41,Invoer!$F$41*G67,Invoer!$D$41*G67) -> 57.5 | AL67: 172.5 | AM67: 2566.086816 | AO67: 3162.5 | AQ67: 5641.9 | AR67: 2566.086816 | AS67: 3075.813184 | AT67: 2300 | AU67: 775.813184 | AW67: 0 | AX67: 0.8 | AY67: 0.2 | AZ67: 775.813184 | BB67: 0 | BC67: 0.8 | BD67: 0.2 | BE67: 3075.813184
B68: 0.1 | C68: =B68*Invoer!$E$9 -> 57.5 | D68: 0.8 | E68: =D68*Invoer!$E$9 -> 460 | F68: 0.1 | G68: =F68*Invoer!$E$9 -> 57.5 | I68: 0.1 | J68: =I68*Invoer!$E$15 -> 18.975 | K68: 0.8 | L68: =K68*Invoer!$E$15 -> 151.8 | M68: =K68*Invoer!$E$20 -> 83.49 | N68: 0.1 | O68: =N68*Invoer!$E$9 -> 57.5 | Q68: 0.1 | R68: =IF(Invoer!$F$28,J68*Invoer!$F$28,J68*Invoer!$D$28) -> 379.5 | S68: 0.8 | T68: =IF(Invoer!$F$29,M68*Invoer!$F$29,M68*Invoer!$D$29) -> 5009.4 | U68: 0.1 | V68: =IF(Invoer!$F$27,O68*Invoer!$F$27,O68*Invoer!$D$27) -> 316.25 | X68: 0.1 | Y68: =Invoer!$D$34*Berekeningen!C68 -> 57.5 | Z68: =Berekeningen!C68*Invoer!$D$35 -> 115 | AA68: =IF(Invoer!$F$42,J68*Invoer!$F$42,J68*Invoer!$D$42) -> 11.95425 | AB68: 184.45425 | AC68: 0.8 | AD68: =Invoer!$D$34*E68 -> 460 | AE68: =E68*Invoer!$D$35 -> 920 | AF68: =L68*Invoer!$D$36 -> 599.61 | AG68: =IF(Invoer!$F$43,Invoer!$F$43*M68,Invoer!$D$43*M68) -> 413.976816 | AH68: 2393.586816 | AI68: 0.1 | AJ68: =Invoer!$D$34*Berekeningen!G68 -> 57.5 | AK68: =IF(Invoer!$F$41,Invoer!$F$41*G68,Invoer!$D$41*G68) -> 28.75 | AL68: 86.25 | AM68: 2664.291066 | AO68: 3162.5 | AQ68: 5705.15 | AR68: 2664.291066 | AS68: 3040.858934 | AT68: 2300 | AU68: 740.858934 | AW68: 0.1 | AX68: 0.8 | AY68: 0.1 | AZ68: 740.858934 | BB68: 0.1 | BC68: 0.8 | BD68: 0.1 | BE68: 3040.858934
B69: 0.2 | C69: =B69*Invoer!$E$9 -> 115 | D69: 0.8 | E69: =D69*Invoer!$E$9 -> 460 | F69: 0 | G69: =F69*Invoer!$E$9 -> 0 | I69: 0.2 | J69: =I69*Invoer!$E$15 -> 37.95 | K69: 0.8 | L69: =K69*Invoer!$E$15 -> 151.8 | M69: =K69*Invoer!$E$20 -> 83.49 | N69: 0 | O69: =N69*Invoer!$E$9 -> 0 | Q69: 0.2 | R69: =IF(Invoer!$F$28,J69*Invoer!$F$28,J69*Invoer!$D$28) -> 759 | S69: 0.8 | T69: =IF(Invoer!$F$29,M69*Invoer!$F$29,M69*Invoer!$D$29) -> 5009.4 | U69: 0 | V69: =IF(Invoer!$F$27,O69*Invoer!$F$27,O69*Invoer!$D$27) -> 0 | X69: 0.2 | Y69: =Invoer!$D$34*Berekeningen!C69 -> 115 | Z69: =Berekeningen!C69*Invoer!$D$35 -> 230 | AA69: =IF(Invoer!$F$42,J69*Invoer!$F$42,J69*Invoer!$D$42) -> 23.9085 | AB69: 368.9085 | AC69: 0.8 | AD69: =Invoer!$D$34*E69 -> 460 | AE69: =E69*Invoer!$D$35 -> 920 | AF69: =L69*Invoer!$D$36 -> 599.61 | AG69: =IF(Invoer!$F$43,Invoer!$F$43*M69,Invoer!$D$43*M69) -> 413.976816 | AH69: 2393.586816 | AI69: 0 | AJ69: =Invoer!$D$34*Berekeningen!G69 -> 0 | AK69: =IF(Invoer!$F$41,Invoer!$F$41*G69,Invoer!$D$41*G69) -> 0 | AL69: 0 | AM69: 2762.495316 | AO69: 3162.5 | AQ69: 5768.4 | AR69: 2762.495316 | AS69: 3005.904684 | AT69: 2300 | AU69: 705.904684 | AW69: 0.2 | AX69: 0.8 | AY69: 0 | AZ69: 705.904684 | BB69: 0.2 | BC69: 0.8 | BD69: 0 | BE69: 3005.904684
B70: 0 | C70: =B70*Invoer!$E$9 -> 0 | D70: 0.9 | E70: =D70*Invoer!$E$9 -> 517.5 | F70: 0.1 | G70: =F70*Invoer!$E$9 -> 57.5 | I70: 0 | J70: =I70*Invoer!$E$15 -> 0 | K70: 0.9 | L70: =K70*Invoer!$E$15 -> 170.775 | M70: =K70*Invoer!$E$20 -> 93.92625 | N70: 0.1 | O70: =N70*Invoer!$E$9 -> 57.5 | Q70: 0 | R70: =IF(Invoer!$F$28,J70*Invoer!$F$28,J70*Invoer!$D$28) -> 0 | S70: 0.9 | T70: =IF(Invoer!$F$29,M70*Invoer!$F$29,M70*Invoer!$D$29) -> 5635.575 | U70: 0.1 | V70: =IF(Invoer!$F$27,O70*Invoer!$F$27,O70*Invoer!$D$27) -> 316.25 | X70: 0 | Y70: =Invoer!$D$34*Berekeningen!C70 -> 0 | Z70: =Berekeningen!C70*Invoer!$D$35 -> 0 | AA70: =IF(Invoer!$F$42,J70*Invoer!$F$42,J70*Invoer!$D$42) -> 0 | AB70: 0 | AC70: 0.9 | AD70: =Invoer!$D$34*E70 -> 517.5 | AE70: =E70*Invoer!$D$35 -> 1035 | AF70: =L70*Invoer!$D$36 -> 674.56125 | AG70: =IF(Invoer!$F$43,Invoer!$F$43*M70,Invoer!$D$43*M70) -> 465.723918 | AH70: 2692.785168 | AI70: 0.1 | AJ70: =Invoer!$D$34*Berekeningen!G70 -> 57.5 | AK70: =IF(Invoer!$F$41,Invoer!$F$41*G70,Invoer!$D$41*G70) -> 28.75 | AL70: 86.25 | AM70: 2779.035168 | AO70: 3162.5 | AQ70: 5951.825 | AR70: 2779.035168 | AS70: 3172.789832 | AT70: 2300 | AU70: 872.789832 | AW70: 0 | AX70: 0.9 | AY70: 0.1 | AZ70: 872.789832 | BB70: 0 | BC70: 0.9 | BD70: 0.1 | BE70: 3172.789832
B71: 0.1 | C71: =B71*Invoer!$E$9 -> 57.5 | D71: 0.9 | E71: =D71*Invoer!$E$9 -> 517.5 | F71: 0 | G71: =F71*Invoer!$E$9 -> 0 | I71: 0.1 | J71: =I71*Invoer!$E$15 -> 18.975 | K71: 0.9 | L71: =K71*Invoer!$E$15 -> 170.775 | M71: =K71*Invoer!$E$20 -> 93.92625 | N71: 0 | O71: =N71*Invoer!$E$9 -> 0 | Q71: 0.1 | R71: =IF(Invoer!$F$28,J71*Invoer!$F$28,J71*Invoer!$D$28) -> 379.5 | S71: 0.9 | T71: =IF(Invoer!$F$29,M71*Invoer!$F$29,M71*Invoer!$D$29) -> 5635.575 | U71: 0 | V71: =IF(Invoer!$F$27,O71*Invoer!$F$27,O71*Invoer!$D$27) -> 0 | X71: 0.1 | Y71: =Invoer!$D$34*Berekeningen!C71 -> 57.5 | Z71: =Berekeningen!C71*Invoer!$D$35 -> 115 | AA71: =IF(Invoer!$F$42,J71*Invoer!$F$42,J71*Invoer!$D$42) -> 11.95425 | AB71: =Y71+Z71+AA71 -> 184.45425 | AC71: 0.9 | AD71: =Invoer!$D$34*E71 -> 517.5 | AE71: =E71*Invoer!$D$35 -> 1035 | AF71: =L71*Invoer!$D$36 -> 674.56125 | AG71: =IF(Invoer!$F$43,Invoer!$F$43*M71,Invoer!$D$43*M71) -> 465.723918 | AH71: 2692.785168 | AI71: 0 | AJ71: =Invoer!$D$34*Berekeningen!G71 -> 0 | AK71: =IF(Invoer!$F$41,Invoer!$F$41*G71,Invoer!$D$41*G71) -> 0 | AL71: 0 | AM71: =AB71+AH71+AL71 -> 2877.239418 | AO71: 3162.5 | AQ71: 6015.075 | AR71: 2877.239418 | AS71: 3137.835582 | AT71: 2300 | AU71: 837.835582 | AW71: 0.1 | AX71: 0.9 | AY71: 0 | AZ71: 837.835582 | BB71: 0.1 | BC71: 0.9 | BD71: 0 | BE71: 3137.835582
B72: 0 | C72: =B72*Invoer!$E$9 -> 0 | D72: 1 | E72: =D72*Invoer!$E$9 -> 575 | F72: 0 | G72: =F72*Invoer!$E$9 -> 0 | I72: 0 | J72: =I72*Invoer!$E$15 -> 0 | K72: 1 | L72: =K72*Invoer!$E$15 -> 189.75 | M72: =K72*Invoer!$E$20 -> 104.3625 | N72: 0 | O72: =N72*Invoer!$E$9 -> 0 | Q72: 0 | R72: =IF(Invoer!$F$28,J72*Invoer!$F$28,J72*Invoer!$D$28) -> 0 | S72: 1 | T72: =IF(Invoer!$F$29,M72*Invoer!$F$29,M72*Invoer!$D$29) -> 6261.75 | U72: 0 | V72: =IF(Invoer!$F$27,O72*Invoer!$F$27,O72*Invoer!$D$27) -> 0 | X72: 0 | Y72: =Invoer!$D$34*Berekeningen!C72 -> 0 | Z72: =Berekeningen!C72*Invoer!$D$35 -> 0 | AA72: =IF(Invoer!$F$42,J72*Invoer!$F$42,J72*Invoer!$D$42) -> 0 | AB72: =Y72+Z72+AA72 -> 0 | AC72: 1 | AD72: =Invoer!$D$34*E72 -> 575 | AE72: =E72*Invoer!$D$35 -> 1150 | AF72: =L72*Invoer!$D$36 -> 749.5125 | AG72: =IF(Invoer!$F$43,Invoer!$F$43*M72,Invoer!$D$43*M72) -> 517.47102 | AH72: =AD72+AE72+AF72+AG72 -> 2991.98352 | AI72: 0 | AJ72: =Invoer!$D$34*Berekeningen!G72 -> 0 | AK72: =IF(Invoer!$F$41,Invoer!$F$41*G72,Invoer!$D$41*G72) -> 0 | AL72: =AJ72+AK72 -> 0 | AM72: 2991.98352 | AO72: 3162.5 | AQ72: 6261.75 | AR72: 2991.98352 | AS72: 3269.76648 | AT72: =AO72-$AM$7 -> 2300 | AU72: 969.76648 | AW72: 0 | AX72: 1 | AY72: 0 | AZ72: 969.76648 | BB72: 0 | BC72: 1 | BD72: 0 | BE72: 3269.76648

Sheet Achtergrondgegevens (hidden)
B2: Rendement
B3: Verse noten | C3: 1
B4: Droge, ongekraakte walnoten | C4: 0.575
B5: Gekraakte walnoten | C5: 0.33
B6: Walnootolie | C6: 0.55

Sheet Bedrijven (hidden)
B2: Verwerkingsbedrijven | D2: * De variabelen prijzen per input product zijn berekend uitgaande van de volgende rendementen (100% droge walnoten, 33% Walnootkernen, 16,5% walnootolie). Om zo de prijzen van de verschillende verwerkers te kunnen vergelijken. De bedrijven met * rekenen echter met een prijs voor het output product. Hierdoor kunnen verschillen door onstaan afhankelijk van het kraak en pers rendementen van de betreffende walnoten.
B4: Naam | C4: Link | D4: Land - Prov./Arr. | E4: Plaats | F4: Proces | G4: Opmerkingen | H4: Min. Kg | I4: Input Product | J4: Variabele prijzen (per kg Input product) | K4: Berekeningen: | L4: Kolom1
B5: Veld 4 | C5: Notenperserij - Veld 4 | D5: NL - Gelderland | E5: Zoelen | F5: Wassen en drogen | H5: 700 | I5: Droge Walnoten | J5: 0.5
F6: Kalibreren | H6: 700 | I6: Droge Walnoten | J6: 0.5
F7: Kraken | G7: Alleen in combinatie met wassen, drogen, kalibreren | H7: 1500 | I7: Droge Walnoten | J7: 2
F8: Persen | G8: Olie wordt afgevuld in 5 liter zak met tapkraantje | H8: 10 | I8: Walnootkernen | J8: 3.95
B10: Hanne Hoeve | C10: Kraken & persen - Hannehoeve.nl | D10: NL - Noord-Brabant | E10: Westerhoven | F10: Kraken | H10: 25 | I10: Droge Walnoten | J10: 1
F11: Kraken + nabewerken | G11: Nabewerken is handmatig slechte kernen verwijderen | H11: 0 | I11: Droge Walnoten | J11: 2.5
F12: Persen | G12: Olie wordt afgevuld in glazen flessen van 200 ml. Eigen etiket oplakken is mogelijk | H12: 0 | I12: Walnootkernen | J12: 21.08 | K12: Eigen olie terug (in 200 ml fles) * inclusief verpakking Rendement Droge ongekraakte Noot (100%) - Walnootkernen (33%) - Olie (19,6%): 5,05 kg - 1,66 kg - 1 l 1 l olie = € 35,00 1,0 kg Walnootkernen persen (€ 35/ 1,66) = € 21,08 ( 0,6 l olie)
B14: Kleine Muyl * | C14: Persen van de walnootolie en hazelnootolie | Oliemolen De Kleine Muyl Walnootolie, Hazelnootolie | D14: NL - Gelderland | E14: Nijbroek | F14: Persen | H14: 5 | I14: Walnootkernen | K14: Betalen in natura met deel van geperste walnootolie. 5 t/m 10 kg , krijg je terug 200 ml per kg (gepelde noten) Vanaf 10 kg gepelde noten, krijg je terug 250 ml per kg (gepelde noten). Rendement Droge ongekraakte Noot (100%) - Walnootkernen (33%) - Olie (16,5%). Vanaf 10 kg: 1 kg kernen - 500 ml olie. 250 ml krijg je terug, je betaald 50% in natura. 5 t/m 10 kg: 1 kg kernen - 500 ml olie. 200 ml krijg je terug, je betaald 60% in natura. Kosten terug te berekenen aan de hand van de verkoopprijs van de walnootolie.
B16: Appelpers le Rouge * | C16: Noten persen | Mobiele Fruitpers ZEVERGEM | D16: BE - Gent | E16: De Pinte | F16: Kraken & Persen | G16: Alleen kraken is niet mogelijk Olie wordt afgevuld in glazen flessen van 100 of 250 ml | H16: 10 | I16: Droge Walnoten | J16: 4.6 | K16: Eigen olie terug (in 1l fles) * inclusief verpakking Rendement Droge ongekraakte Noot (100%) - Walnootkernen (33%) - Olie (16,5%): 6,06 kg - 2,0 kg - 1 l 1 l olie = € 28,00 € 28,00 / 6,06 kg = € 4,60 (0,165 l olie)
F17: Persen | G17: Olie wordt afgevuld in glazen flessen van 100 of 250 ml | H17: 5 | I17: Walnootkernen | J17: 8.75 | K17: Eigen olie terug (in 1l fles) * inclusief verpakking Rendement Droge ongekraakte Noot (100%) - Walnootkernen (33%) - Olie (16,5%): 6,06 kg - 2,0 kg - 1 l 1 l olie = € 17,30 1,0 kg Walnootkernen persen (€ 17,30 / 2) = € 8,75 ( 0,5 l olie)
B19: Het Nutsbedrijf * | C19: Jouw noten | hetnutsbedrijf.be | D19: BE - West-Vlaanderen | E19: Ieper - Zillebeke | F19: Persen | G19: Olie wordt afgevuld in glazen flessen van 250 ml | H19: 3 | I19: Walnootkernen | J19: 6.75 | K19: *Inclusief 6% BTW, flessen en doppen (250 ml) Eerste kg € 12,50 2e tot en met 5e kg € 7,50 Vanaf 6 kg € 5,00 Berekening prijs/ kg voor 10 kilo kernen (€ 12,50 + (4*€ 7,50) + 5 *€ 5,00))= € 67,50 / 10 kg = € 6,75
B21: Mobiele fruitpers.be * | C21: Mobiele fruitpers | Delicieuze, goudgele olie van uw wal- en hazelnoten | D21: BE - West-Vlaanderen | E21: Beernem | F21: Kraken & Persen | G21: Alleen kraken is niet mogelijk | H21: 40 | I21: Droge Walnoten | J21: 5.33 | K21: Eigen olie terug (in 250 ml fles) * inclusief verpakking Rendement Droge ongekraakte Noot (100%) - Walnootkernen (33%) - Olie (16,5%): 1,52 kg - 500 g - 250 ml 250 ml olie = € 8,00 € 8,00 / 1,52 kg = € 5,33 (0,165 l olie)
F22: Persen | G22: Olie wordt afgevuld in glazen flessen van 250 ml | H22: 10 | I22: Walnootkernen | J22: 9 | K22: Eigen olie terug (in 250 ml fles) * inclusief verpakking Rendement Droge ongekraakte Noot (100%) - Walnootkernen (33%) - Olie (16,5%): 1,52 kg - 500 g - 250 ml 250 ml olie = € 4,50 1,0 kg Walnootkernen persen (€ 4,50 * 2) = € 9,00 ( 0,5 l olie)
B24: Nooly Why Nut * | C24: Uw noten persen - Nooly | D24: BE - West-Vlaanderen | E24: Roeselare | F24: Kraken & Persen | G24: Alleen kraken is niet mogelijk | H24: 5 | I24: Droge Walnoten | J24: 5.92 | K24: Eigen olie terug (in 250 ml fles) * inclusief verpakking Rendement Droge ongekraakte Noot (100%) - Walnootkernen (33%) - Olie (16,5%): 1,52 kg - 500 g - 250 ml 250 ml olie = € 9,00 € 9,00 / 1,52 kg = € 5,92 (0,165 l olie)
F25: Persen | G25: Olie wordt afgevuld in glazen flessen van 250 ml | H25: 1.5 | I25: Walnootkernen | J25: 12 | K25: Eigen olie terug (in 250 ml fles) * inclusief verpakking Rendement Droge ongekraakte Noot (100%) - Walnootkernen (33%) - Olie (16,5%): 1,52 kg - 500 g - 250 ml 250 ml olie = € 6,00 1,0 kg Walnootkernen persen (€ 6,00 * 2) = € 12,00 ( 0,5 l olie)

Sheet Verkoopprijzen (hidden)
B2: Verkoopprijzen | C2: * Verkoopprijzen december 2024
B4: Product | C4: Bedrijf | D4: Afzet | E4: Prijs | F4: Hoeveelheid | G4: € per (kg) of (l) | I4: Gemiddelden
B5: Gepelde Walnoten | C5: De Hanne Hoeve | D5: Particulieren | E5: 4.5 | F5: 175 g | G5: 25.72 | I5: Ongepelde Walnoten | J5: =AVERAGE(G19:G23) -> 5.523
B6: Gepelde Walnoten | C6: De Hanne Hoeve | D6: Particulieren | E6: 2.25 | F6: 75 g | G6: 30 | I6: Gepelde Walnoten | J6: =AVERAGE(G5:G18) -> 21.27142857
B7: Gepelde Walnoten | C7: Veld4 | D7: Particulieren | E7: 12.25 | F7: 700 g | G7: 17.5 | I7: Walnootolie | J7: =AVERAGE(G28:G34) -> 64.40857143
B8: Gepelde Walnoten | C8: Ekoplaza (Huismerk) | D8: Particulieren | E8: 7.49 | F8: 500 g | G8: 14.98
B9: Gepelde Walnoten | C9: Ekoplaza (Horizon) | D9: Particulieren | E9: 3.39 | F9: 125 g | G9: 27.12
B10: Gepelde Walnoten | C10: Ekoplaza (Huismerk) | D10: Particulieren | E10: 4.19 | F10: 250 g | G10: 16.76
B11: Gepelde Walnoten | C11: Ekoplaza (Terrasana) | D11: Particulieren | E11: 9.99 | F11: 600 g | G11: 16.65
B12: Gepelde Walnoten | C12: Ekoplaza (Wisselwaar) | D12: Particulieren | E12: 6.99 | F12: 375 g | G12: 18.64
B13: Gepelde Walnoten | C13: Ekoplaza (Green Age) | D13: Particulieren | E13: 4.19 | F13: 150 g | G13: 27.93
B14: Gepelde Walnoten | C14: Ekoplaza (Your Organic Nature) | D14: Particulieren | E14: 3.49 | F14: 200 g | G14: 17.45
B15: Gepelde Walnoten | C15: Albert Heijn (Huismerk) | D15: Particulieren | E15: 2.59 | F15: 200 g | G15: 12.95
B16: Gepelde Walnoten | C16: Albert Heijn (Huismerk) | D16: Particulieren | E16: 1.49 | F16: 50 g | G16: 29.8
B17: Gepelde Walnoten | C17: Albert Heijn (Huismerk) | D17: Particulieren | E17: 2.09 | F17: 110 g | G17: 19
B18: Gepelde Walnoten | C18: Albert Heijn (Huismerk) | D18: Particulieren | E18: 6.99 | F18: 300 g | G18: 23.3
B19: Ongepelde Walnoten | C19: Veld4 | D19: Particulieren | E19: 4.5 | F19: 1000 g | G19: 4.5
B20: Ongepelde Walnoten | C20: Veld4 | D20: Particulieren | E20: 21.95 | F20: 5000 g | G20: 4.39
B21: Ongepelde Walnoten | C21: Albert Heijn (Huismerk) | D21: Particulieren | E21: 3.09 | F21: 400 g | G21: 7.725
B22: Ongepelde Walnoten | C22: De Hanne Hoeve | D22: Particulieren | E22: 3 | F22: 500 g | G22: 6
B23: Ongepelde Walnoten | C23: De Hanne Hoeve | D23: Particulieren | E23: 5 | F23: 1000g | G23: 5
B24: Verpakking Kernen Blokbodemzakjes plastic - 1000 stuks 120 x 80 + 330mm (100 g per zakje) | C24: Monniss.nl (er zijn veel bedrijven die verpakkingen verkopen, prijsrange is ong. gelijk) | D24: Zakelijk inkopen prijs is exclusief BTW | E24: 98 | F24: 1000 stuks | G24: 0.98
B25: Verpakking Olie glazen fles (250 ml) incl sluiting en schroefdop model Marasca - 160 stuks | C25: GlazenflessenEnPotten.nl (er zijn veel bedrijven die verpakkingen verkopen, prijsrange is ong. gelijk) | D25: Zakelijk inkopen prijs is exclusief BTW | E25: 184 | F25: 160 stuks | G25: 4.6
B26: Walnootgries | C26: Kleine Muyl | D26: Particulieren | E26: 2.5 | F26: 100 g | G26: 25
B27: Walnootgries | C27: Kleine Muyl | D27: Particulieren | E27: 4.95 | F27: 250 g | G27: 19.8
B28: Walnootolie | C28: De Hanne Hoeve | D28: Particulieren | E28: 15 | F28: 200 ml | G28: 75
B29: Walnootolie | C29: De Hanne Hoeve | D29: Particulieren | E29: 70 | F29: 1000 ml | G29: 70
B30: Walnootolie | C30: Veld4 | D30: Particulieren | E30: 10.5 | F30: 200 ml | G30: 52.5
B31: Walnootolie | C31: Kleine Muyl | D31: Particulieren | E31: 8 | F31: 100 ml | G31: 80
B32: Walnootolie | C32: Kleine Muyl | D32: Particulieren | E32: 16 | F32: 250 ml | G32: 64
B33: Walnootolie (geroosterd) | C33: Oil & Vinegar | D33: Particulieren | E33: 14.95 | F33: 250 ml | G33: 59.8
B34: Walnootolie (koud geperst BIO) | C34: Ekoplaza | D34: Particulieren | E34: 12.39 | F34: 250 ml | G34: 49.56
B35: Walnootpasta | C35: Veld4 | D35: Particulieren | E35: 7.25 | F35: 200 g | G35: 36.25

Sheet Verpakking (hidden)
B2: Verpakkingen
B4: Olie | D4: Prijs excl. BTW per 100 stuks | E4: Prijs p/l | F4: Link
B5: Basis | C5: 250 ml Marasca SPP31.5 inlcusief sluiting | D5: 0.9 | E5: =D5*4 -> 3.6 | F5: 250ml Marasca SPP31.5 incl sluiting - Glazenflessenenpotten.nl
B6: Luxe | C6: Glazen fles Apotheker carré, 250 ml, vierkant, monding: kurk + houten greep | D6: 2.51 | E6: =D6*4 -> 10.04 | F6: Glazen fles Apotheker carré, 250 ml, vierkant, monding: kurk | 250,00 | transparant | 100020650
B8: Kernen | D8: Prijs excl. BTW per 100 stuks | E8: Prijs p/l | F8: Link
B9: Basis | C9: Blokbodemzakjes plastic transparant 60 + 50 x 200 mm - per 100 stuks | D9: 6.29 | E9: =(D9/100)*10 -> 0.629 | F9: Blokbodemzakjes 60 + 50 x 200 mm Transparant (100 stuks)
B10: Luxe | C10: Blokbodemzakjes kraftpapier met venster 80 + 50 x 250 mm - per 100 stuks | D10: 12.62 | E10: =(D10/100)*10 -> 1.262 | F10: Blokbodemzakjes 80 + 50 x 250 mm Kraft met Venster (100 stuks)
B28: Etiketten
D29: Prijs excl. BTW per 100 stuks | E29: Prijs p/(l/kg) | F29: Link
B30: Olie | C30: Standaart formaat (bijv. 100 x 57mm), rechthoekig zelfklevend, wit papier, glanzende lak | D30: 33.96 | E30: =(D30/100)*4 -> 1.3584 | F30: Olie & azijn etiketten | Avery

Sheet Productiviteit (hidden)
B2: Productiviteit
B4: Bron: Rekentool 5.0 Voedselbossen (HAS)
B5: https://www.has.nl/onderzoek/onderzoeksprojecten/agroforestry-en-voedselbossen/
B11: Bron: Informatiefiche Walnoot (Juglans regia en Juglans nigra) (Agroforestry Vlaanderen, 2021)
B12: Walnoot - Agroforestry
B13: De notenopbrengst is afhankelijk van het ras, de leeftijd van de boom, de plantafstand, en het jaar. De productie begint, bij goede groeiomstandigheden, vanaf jaar zeven na aanleg op gang te komen. De gemiddelde productie van jaar zeven tot tien bedraagt 1 kg (droge) noten per boom. Bij een leeftijd van tien jaar kan de productie op 5 kg per boom gesteld worden, en bij twintig jaar op 10 kg noten per boom. De volledige productie (gemiddeld 18 kg per boom) wordt na dertig jaar verwacht, en kan aanhouden tot ongeveer jaar vijftig. Er zijn echter goede en slechte notenjaren, vermits ongunstige weersomstandigheden tijdens de bloei de vruchtzetting nadelig kunnen beïnvloeden. Bovendien is het weer in de zomer bepalend voor de vruchtkwaliteit.
B16: Bron: Nederlandse Notenteelt (WUR, 2020, p.43-44)
B17: https://edepot.wur.nl/525171
B18: Het saldo voor een volwassenaanplant walnoot van het ras Broadview en plantdichtheid van 204 bomen per ha (plantafstand van 7*7 meter) is daarmee berekend op € 9613. Ook moet rekening gehouden worden met het feit dat dit berekende saldo pas geldt bij volle productie en dat is bij walnoot vanaf jaar 15 van de plantopstand (Oosterbaan, 2018). Gebaseerd op de ervaringen in de notenvereniging is voor de standaardberekeningen uitgegaan van een bruto productie (= vers opbrengst) van 4000 kilo/ha.
B21: Bron: Walnotenteelt combineren met vleesvarkers (ILVO, 2024, p.5)
B22: Factsheet Walnoten-varken
B23: De hoeveelheid walnoten die geoogst kan worden is afhankelijk van vele verschillende factoren: de aangeplante variëteiten, het type bodem, aantasting door ziektes en plagen, oogstverlies door wilde dieren, de weersomstandigheden,… De productiviteit van een walnotenaanplant is dus erg situatiespecifiek. Om toch tot een realistische simulatie te komen, werd gewerkt met een productie van 18 kg goede, droge walnoten per volwassen boom. Deze netto opbrengst wordt gehanteerd in het boek Walnoot+ (Oosterbaan, 2015) en komt dicht bij de gemiddelde netto opbrengst waargenomen bij volwassen bomen van verschillende variëteiten tijdens een meerjarige proef in Wilhelminadorp (Wertheim & Kemp, 1998). Wegens de lagere plantdichtheid in agroforestrysystemen zal de werkelijke productie per boom hoger zijn, maar om oogstverliezen door wilde dieren in rekening te brengen werd dit getal behouden. Aangezien walnoten de helft van hun gewicht verliezen door het drogen, komt dit op 32 kg verse walnoten per boom. De maximale productie kan men verwachten vanaf jaar 15. Vanaf jaar 6 tot jaar 15 werd een lineaire toename in opbrengst verondersteld. Om slechte notenjaren te simuleren, werd om de drie jaar 30% minder oogst gerekend. De productiecurve die op deze manier werd bekomen, wordt rechts weergegeven. De scenario's waarin verschillende eindproducten verkocht worden werden ook met elkaar vergeleken bij 10 tot 50% oogstverlies, wat overeenkomt met een netto productie van 9 tot 16,2 kg per boom.
B43: Plantafstand
B45: Bron: Factsheet Juglans regia - walnoot (WUR, 2021, p.3)
B46: https://edepot.wur.nl/562158
B47: In de notenteelt wordt walnoot vaak als eenjarige plant met een plantafstand van 10 bij 4 meter aangeplant. Ook dichtere plantafstanden komen voor bij notenteeltplantages, bijvoorbeeld 4 x 3 meter, waarna het stamtal gedurende de omlooptijd wordt gereduceerd, bijvoorbeeld naar een eindafstand van 10 x 10, 12 x 12 of 15 x 12 meter.
B48: Aantal bomen per hectare:
B49: Plantafstand 10 x 10 meter (10.000m2 / 100 m2) = 100 bomen
B50: Plantafstand 12 x 12 meter (10.000m2 / 144 m2) = 69 bomen
B51: Plantafstand 15 x 12 meter (10.000m2 / 180 m2 = 55 bomen
B53: Gewichtsverschil verse en droge walnoot
B54: https://edepot.wur.nl/261208
B55: tussen 25% en 60% (gem. 42,5%)

Sheet Opties dropdown (hidden)
G1: Verpakking
A2: Ongekraakte walnoten | B2: Laag | C2: 4 | G2: Ongekraakte walnoten | H2: Basis | I2: 0.5
B3: Middel | C3: 5.5 | H3: Luxe | I3: 0.5
B4: Hoog | C4: 7 | H4: Eigen invoer | I4: 0
B5: Eigen invoer | C5: 0
G6: Gekraakte walnoten | H6: Basis | I6: 0.63
A7: Gekraakte walnoten | B7: Laag | C7: 12 | H7: Luxe | I7: 1.26
B8: Middel | C8: 20 | H8: Eigen invoer | I8: 0
B9: Hoog | C9: 28
B10: Eigen invoer | C10: 0 | G10: Olie | H10: Basis | I10: =3.6+Verpakking!E30 -> 4.9584
H11: Luxe | I11: =Verpakking!E6+Verpakking!E30 -> 11.3984
A12: Olie | B12: Laag | C12: 45 | H12: Eigen invoer | I12: 0
B13: Middel | C13: 60
B14: Hoog | C14: 75
B15: Eigen invoer | C15: 0
